Workbook

Sheet 1-汇总
A1: 附件1
A2: 提前下达2021年度节能减排补助资金汇总表
G3: 单位：万元
A4: 序号 | B4: 地区 | C4: 地区合计 | D4: 节能与新能源公交车运营补助 | E4: 新能源汽车推广应用补助
E5: 2016年度 | F5: 2017年度 | G5: 2018年度
A6: 合计 | C6: =SUM(D6:G6) -> 3758529 | D6: =SUM(D7:D37) -> 1568910 | E6: =SUM(E7:E37) -> 116163 | F6: =SUM(F7:F37) -> 636251 | G6: =SUM(G7:G37) -> 1437205
A7: 1 | B7: 北京 | C7: =SUM(D7:G7) -> 164822 | E7: ='3-2016'!M6 -> 28759 | F7: ='4-2017'!M6 -> 57108 | G7: ='5-2018'!M6 -> 78955
A8: 2 | B8: 河北 | C8: =SUM(D8:G8) -> 7459 | E8: ='3-2016'!M25 -> 0 | F8: ='4-2017'!M66 -> 4889 | G8: ='5-2018'!M85 -> 2570
A9: 3 | B9: 山西 | C9: 141654 | D9: ='2-运营补助'!D11 -> 65475 | E9: ='3-2016'!M28 -> 20604 | F9: ='4-2017'!M78 -> 45241 | G9: ='5-2018'!M106 -> 10334
A10: 4 | B10: 内蒙古 | C10: 22501 | D10: ='2-运营补助'!D14 -> 22501
A11: 5 | B11: 大连 | C11: 28145 | D11: ='2-运营补助'!D17 -> 20645 | F11: ='4-2017'!M111 -> 5193 | G11: ='5-2018'!M147 -> 2307
A12: 6 | B12: 吉林 | C12: 30027 | D12: ='2-运营补助'!D20 -> 30027
A13: 7 | B13: 上海 | C13: 158688 | D13: ='2-运营补助'!D23 -> 49696 | E13: ='3-2016'!M36 -> 0 | F13: ='4-2017'!M120 -> 25923 | G13: ='5-2018'!M152 -> 83069
A14: 8 | B14: 江苏 | C14: 290704 | D14: ='2-运营补助'!D26 -> 128314 | E14: ='3-2016'!M47 -> 6555 | F14: ='4-2017'!M156 -> 60185 | G14: ='5-2018'!M249 -> 95650
A15: 9 | B15: 浙江 | C15: 135365 | D15: ='2-运营补助'!D29 -> 73731 | F15: ='4-2017'!M256 -> 0 | G15: ='5-2018'!M441 -> 61634
A16: 10 | B16: 宁波 | C16: 45599 | D16: ='2-运营补助'!D32 -> 20104 | E16: ='3-2016'!M92 -> 3970 | F16: ='4-2017'!M271 -> 17365 | G16: ='5-2018'!M475 -> 4160
A17: 11 | B17: 安徽 | C17: 206843 | D17: ='2-运营补助'!D35 -> 76885 | E17: ='3-2016'!M95 -> 181 | F17: ='4-2017'!M287 -> 43546 | G17: ='5-2018'!M501 -> 86231
A18: 12 | B18: 福建 | C18: 73023 | D18: ='2-运营补助'!D38 -> 62740 | F18: ='4-2017'!M330 -> 8769 | G18: ='5-2018'!M617 -> 1514
A19: 13 | B19: 厦门 | C19: 100670 | E19: ='3-2016'!M104 -> 4322 | F19: ='4-2017'!M337 -> 10713 | G19: ='5-2018'!M631 -> 85635
A20: 14 | B20: 江西 | C20: 46310 | D20: ='2-运营补助'!D41 -> 46310 | F20: ='4-2017'!M400 -> 0 | G20: ='5-2018'!M763 -> 0
A21: 15 | B21: 山东 | C21: 373072 | D21: ='2-运营补助'!D44 -> 190211 | E21: ='3-2016'!M119 -> 17790 | F21: ='4-2017'!M425 -> 66788 | G21: ='5-2018'!M811 -> 98283
A22: 16 | B22: 青岛 | C22: 8954 | F22: ='4-2017'!M497 -> 3691 | G22: ='5-2018'!M927 -> 5263
A23: 17 | B23: 河南 | C23: 415483 | D23: ='2-运营补助'!D47 -> 152785 | F23: ='4-2017'!M503 -> 2482 | G23: ='5-2018'!M936 -> 260216
A24: 18 | B24: 湖北 | C24: 235703 | E24: ='3-2016'!M146 -> 9292 | F24: ='4-2017'!M560 -> 146069 | G24: ='5-2018'!M1090 -> 80342
A25: 19 | B25: 湖南 | C25: 259094 | D25: ='2-运营补助'!D50 -> 148998 | E25: ='3-2016'!M158 -> 759 | F25: ='4-2017'!M652 -> 17159 | G25: ='5-2018'!M1217 -> 92178
A26: 20 | B26: 广东 | C26: 370306 | D26: ='2-运营补助'!D53 -> 217291 | E26: ='3-2016'!M161 -> 17710 | F26: ='4-2017'!M687 -> 34113 | G26: ='5-2018'!M1280 -> 101192
A27: 21 | B27: 深圳 | C27: 215577 | D27: ='2-运营补助'!D56 -> 110012 | E27: ='3-2016'!M175 -> 0 | F27: ='4-2017'!M731 -> 32854 | G27: ='5-2018'!M1334 -> 72711
A28: 22 | B28: 广西 | C28: 22698 | F28: ='4-2017'!M760 -> 3362 | G28: ='5-2018'!M1385 -> 19336
A29: 23 | B29: 海南 | C29: 15244 | D29: ='2-运营补助'!D59 -> 15244
A30: 24 | B30: 重庆 | C30: 87397 | D30: ='2-运营补助'!D62 -> 17421 | E30: ='3-2016'!M185 -> 0 | F30: ='4-2017'!M779 -> 20259 | G30: ='5-2018'!M1419 -> 49717
A31: 25 | B31: 四川 | C31: 122142 | D31: ='2-运营补助'!D65 -> 59453 | E31: ='3-2016'!M189 -> 6221 | F31: ='4-2017'!M804 -> 22511 | G31: ='5-2018'!M1470 -> 33957
A32: 26 | B32: 云南 | C32: 30996 | D32: ='2-运营补助'!D68 -> 29856 | E32: ='3-2016'!M197 -> 0 | F32: ='4-2017'!M824 -> 0 | G32: ='5-2018'!M1506 -> 1140
A33: 27 | B33: 西藏 | C33: 1829 | D33: ='2-运营补助'!D71 -> 1829
A34: 28 | B34: 陕西 | C34: 118842 | E34: ='3-2016'!M200 -> 0 | F34: ='4-2017'!M828 -> 8031 | G34: ='5-2018'!M1512 -> 110811
A35: 29 | B35: 青海 | C35: 8910 | D35: ='2-运营补助'!D74 -> 8910
A36: 30 | B36: 宁夏 | C36: 8057 | D36: ='2-运营补助'!D77 -> 8057
A37: 31 | B37: 新疆 | C37: 12415 | D37: ='2-运营补助'!D80 -> 12415

Sheet 2-运营补助
A1: 附件2
A2: 2019年度节能与新能源公交车运营补助汇总表
R3: 单位：万元
A4: 序号 | B4: 省份 | D4: 合计 | E4: 资金量 | F4: 纯电动公交车运营月数（米，月） | I4: 资金量 | J4: 插电式混合动力公交车运营月数（米，月） | M4: 资金量 | N4: 燃料电池公交车运营月数（米，月） | O4: 资金量 | P4: 超级电容公交车运营月数（米，月） | Q4: 资金量 | R4: 混合动力公交车运营月数（米，月）
F5: 6≤L＜8 | G5: 8≤L＜10 | H5: L≥10 | J5: 6≤L＜8 | K5: 8≤L＜10 | L5: L≥10 | N5: L≥6 | P5: L≥6 | R5: L≥6
A6: 总计 | C6: 存量部分 | F6: =F9+F12+F15+F18+F21+F24+F27+F30+F33+F36+F39+F42+F45+F48+F51+F54+F57+F60+F63+F66+F69+F72+F75+F78 -> 240214 | G6: =G9+G12+G15+G18+G21+G24+G27+G30+G33+G36+G39+G42+G45+G48+G51+G54+G57+G60+G63+G66+G69+G72+G75+G78 -> 1014302 | H6: 1069193 | J6: =J9+J12+J15+J18+J21+J24+J27+J30+J33+J36+J39+J42+J45+J48+J51+J54+J57+J60+J63+J66+J69+J72+J75+J78 -> 0 | K6: =K9+K12+K15+K18+K21+K24+K27+K30+K33+K36+K39+K42+K45+K48+K51+K54+K57+K60+K63+K66+K69+K72+K75+K78 -> 63983 | L6: 457992 | N6: =N9+N12+N15+N18+N21+N24+N27+N30+N33+N36+N39+N42+N45+N48+N51+N54+N57+N60+N63+N66+N69+N72+N75+N78 -> 1945 | P6: =P9+P12+P15+P18+P21+P24+P27+P30+P33+P36+P39+P42+P45+P48+P51+P54+P57+P60+P63+P66+P69+P72+P75+P78 -> 0 | R6: =R9+R12+R15+R18+R21+R24+R27+R30+R33+R36+R39+R42+R45+R48+R51+R54+R57+R60+R63+R66+R69+R72+R75+R78 -> 24
C7: 增量部分 | F7: =F10+F13+F16+F19+F22+F25+F28+F31+F34+F37+F40+F43+F46+F49+F52+F55+F58+F61+F64+F67+F70+F73+F76+F79 -> 12076 | G7: 78267 | H7: 77145 | J7: =J10+J13+J16+J19+J22+J25+J28+J31+J34+J37+J40+J43+J46+J49+J52+J55+J58+J61+J64+J67+J70+J73+J76+J79 -> 0 | K7: =K10+K13+K16+K19+K22+K25+K28+K31+K34+K37+K40+K43+K46+K49+K52+K55+K58+K61+K64+K67+K70+K73+K76+K79 -> 2843 | L7: 10470 | N7: =N10+N13+N16+N19+N22+N25+N28+N31+N34+N37+N40+N43+N46+N49+N52+N55+N58+N61+N64+N67+N70+N73+N76+N79 -> 960 | P7: =P10+P13+P16+P19+P22+P25+P28+P31+P34+P37+P40+P43+P46+P49+P52+P55+P58+P61+P64+P67+P70+P73+P76+P79 -> 0 | R7: =R10+R13+R16+R19+R22+R25+R28+R31+R34+R37+R40+R43+R46+R49+R52+R55+R58+R61+R64+R67+R70+R73+R76+R79 -> 0
C8: 合计 | D8: =E8+I8+M8+O8+Q8 -> 1568910 | E8: =SUM(E9:E80) -> 1394591 | F8: =SUM(F6:F7) -> 252290 | G8: =SUM(G6:G7) -> 1092569 | H8: 1146338 | I8: =SUM(I9:I80) -> 172861 | J8: =SUM(J6:J7) -> 0 | K8: =SUM(K6:K7) -> 66826 | L8: 468462 | M8: =SUM(M9:M80) -> 1454 | N8: 2905 | O8: =SUM(O9:O80) -> 0 | P8: 0 | Q8: =SUM(Q9:Q80) -> 4 | R8: 24
A9: 1 | B9: 山西 | C9: 存量部分 | F9: 7922 | G9: 50350 | H9: 53024 | J9: 0 | K9: 0 | L9: 2640 | N9: 480 | P9: 0 | R9: 0
C10: 增量部分 | F10: 114 | G10: 1407 | H10: 673 | J10: 0 | K10: 0 | L10: 0 | N10: 0 | P10: 0 | R10: 0
C11: 合计 | D11: =E11+I11+M11+O11+Q11 -> 65475 | E11: =ROUND((F11*4+G11*6+H11*8)/12,0) -> 64355 | F11: =SUM(F9:F10) -> 8036 | G11: =SUM(G9:G10) -> 51757 | H11: 53697 | I11: =ROUND((J11*2+K11*3+L11*4)/12,0) -> 880 | J11: =SUM(J9:J10) -> 0 | K11: =SUM(K9:K10) -> 0 | L11: =SUM(L9:L10) -> 2640 | M11: =ROUND(N11*6/12,0) -> 240 | N11: =SUM(N9:N10) -> 480 | O11: =ROUND(P11*2/12,0) -> 0 | P11: =SUM(P9:P10) -> 0 | Q11: =ROUND(R11*2/12,0) -> 0 | R11: =SUM(R9:R10) -> 0
A12: 2 | B12: 内蒙古 | C12: 存量部分 | F12: 144 | G12: 12456 | H12: 13898 | J12: 0 | K12: 516 | L12: 11988 | N12: 0 | P12: 0 | R12: 0
C13: 增量部分 | F13: 0 | G13: 1544 | H13: 3094 | J13: 0 | K13: 0 | L13: 0 | N13: 0 | P13: 0 | R13: 0
C14: 合计 | D14: =E14+I14+M14+O14+Q14 -> 22501 | E14: =ROUND((F14*4+G14*6+H14*8)/12,0) -> 18376 | F14: =SUM(F12:F13) -> 144 | G14: =SUM(G12:G13) -> 14000 | H14: =SUM(H12:H13) -> 16992 | I14: =ROUND((J14*2+K14*3+L14*4)/12,0) -> 4125 | J14: =SUM(J12:J13) -> 0 | K14: =SUM(K12:K13) -> 516 | L14: =SUM(L12:L13) -> 11988 | M14: =ROUND(N14*6/12,0) -> 0 | N14: =SUM(N12:N13) -> 0 | O14: =ROUND(P14*2/12,0) -> 0 | P14: =SUM(P12:P13) -> 0 | Q14: =ROUND(R14*2/12,0) -> 0 | R14: =SUM(R12:R13) -> 0
A15: 3 | B15: 大连 | C15: 存量部分 | F15: 300 | G15: 3948 | H15: 22236 | J15: 0 | K15: 0 | L15: 9818 | N15: 0 | P15: 0 | R15: 0
C16: 增量部分 | F16: 0 | G16: 32 | H16: 687 | J16: 0 | K16: 0 | L16: 0 | N16: 0 | P16: 0 | R16: 0
C17: 合计 | D17: =E17+I17+M17+O17+Q17 -> 20645 | E17: =ROUND((F17*4+G17*6+H17*8)/12,0) -> 17372 | F17: =SUM(F15:F16) -> 300 | G17: =SUM(G15:G16) -> 3980 | H17: =SUM(H15:H16) -> 22923 | I17: =ROUND((J17*2+K17*3+L17*4)/12,0) -> 3273 | J17: =SUM(J15:J16) -> 0 | K17: =SUM(K15:K16) -> 0 | L17: =SUM(L15:L16) -> 9818 | M17: =ROUND(N17*6/12,0) -> 0 | N17: =SUM(N15:N16) -> 0 | O17: =ROUND(P17*2/12,0) -> 0 | P17: =SUM(P15:P16) -> 0 | Q17: =ROUND(R17*2/12,0) -> 0 | R17: =SUM(R15:R16) -> 0
A18: 4 | B18: 吉林 | C18: 存量部分 | F18: 1884 | G18: 23036 | H18: 16548 | J18: 0 | K18: 2268 | L18: 5604 | N18: 0 | P18: 0 | R18: 0
C19: 增量部分 | F19: 116 | G19: 1928 | H19: 5117 | J19: 0 | K19: 0 | L19: 0 | N19: 0 | P19: 0 | R19: 0
C20: 合计 | D20: =E20+I20+M20+O20+Q20 -> 30027 | E20: =ROUND((F20*4+G20*6+H20*8)/12,0) -> 27592 | F20: =SUM(F18:F19) -> 2000 | G20: =SUM(G18:G19) -> 24964 | H20: =SUM(H18:H19) -> 21665 | I20: =ROUND((J20*2+K20*3+L20*4)/12,0) -> 2435 | J20: =SUM(J18:J19) -> 0 | K20: =SUM(K18:K19) -> 2268 | L20: =SUM(L18:L19) -> 5604 | M20: =ROUND(N20*6/12,0) -> 0 | N20: =SUM(N18:N19) -> 0 | O20: =ROUND(P20*2/12,0) -> 0 | P20: =SUM(P18:P19) -> 0 | Q20: =ROUND(R20*2/12,0) -> 0 | R20: =SUM(R18:R19) -> 0
A21: 5 | B21: 上海 | C21: 存量部分 | F21: 1392 | G21: 10440 | H21: 56388 | J21: 0 | K21: 396 | L21: 8064 | N21: 0 | P21: 0 | R21: 0
C22: 增量部分 | F22: 120 | G22: 313 | H22: 5154 | J22: 0 | K22: 0 | L22: 0 | N22: 0 | P22: 0 | R22: 0
C23: 合计 | D23: =E23+I23+M23+O23+Q23 -> 49696 | E23: =ROUND((F23*4+G23*6+H23*8)/12,0) -> 46909 | F23: =SUM(F21:F22) -> 1512 | G23: =SUM(G21:G22) -> 10753 | H23: =SUM(H21:H22) -> 61542 | I23: =ROUND((J23*2+K23*3+L23*4)/12,0) -> 2787 | J23: =SUM(J21:J22) -> 0 | K23: =SUM(K21:K22) -> 396 | L23: =SUM(L21:L22) -> 8064 | M23: =ROUND(N23*6/12,0) -> 0 | N23: =SUM(N21:N22) -> 0 | O23: =ROUND(P23*2/12,0) -> 0 | P23: =SUM(P21:P22) -> 0 | Q23: =ROUND(R23*2/12,0) -> 0 | R23: =SUM(R21:R22) -> 0
A24: 6 | B24: 江苏 | C24: 存量部分 | F24: 11712 | G24: 75264 | H24: 84516 | J24: 0 | K24: 5640 | L24: 70064 | N24: 180 | P24: 0 | R24: 0
C25: 增量部分 | F25: 265 | G25: 3055 | H25: 5461 | J25: 0 | K25: 748 | L25: 406 | N25: 0 | P25: 0 | R25: 0
C26: 合计 | D26: =E26+I26+M26+O26+Q26 -> 128314 | E26: =ROUND((F26*4+G26*6+H26*8)/12,0) -> 103137 | F26: =SUM(F24:F25) -> 11977 | G26: =SUM(G24:G25) -> 78319 | H26: =SUM(H24:H25) -> 89977 | I26: =ROUND((J26*2+K26*3+L26*4)/12,0) -> 25087 | J26: =SUM(J24:J25) -> 0 | K26: =SUM(K24:K25) -> 6388 | L26: =SUM(L24:L25) -> 70470 | M26: =ROUND(N26*6/12,0) -> 90 | N26: =SUM(N24:N25) -> 180 | O26: =ROUND(P26*2/12,0) -> 0 | P26: =SUM(P24:P25) -> 0 | Q26: =ROUND(R26*2/12,0) -> 0 | R26: =SUM(R24:R25) -> 0
A27: 7 | B27: 浙江（不含宁波） | C27: 存量部分 | F27: 6345 | G27: 35808 | H27: 47276 | J27: 0 | K27: 18405 | L27: 35088 | N27: 0 | P27: 0 | R27: 0
C28: 增量部分 | F28: 2215 | G28: 4892 | H28: 2700 | J28: 0 | K28: 1432 | L28: 1630 | N28: 21 | P28: 0 | R28: 0
C29: 合计 | D29: =E29+I29+M29+O29+Q29 -> 73731 | E29: =ROUND((F29*4+G29*6+H29*8)/12,0) -> 56521 | F29: =SUM(F27:F28) -> 8560 | G29: =SUM(G27:G28) -> 40700 | H29: =SUM(H27:H28) -> 49976 | I29: =ROUND((J29*2+K29*3+L29*4)/12,0) -> 17199 | J29: =SUM(J27:J28) -> 0 | K29: =SUM(K27:K28) -> 19837 | L29: =SUM(L27:L28) -> 36718 | M29: =ROUND(N29*6/12,0) -> 11 | N29: =SUM(N27:N28) -> 21 | O29: =ROUND(P29*2/12,0) -> 0 | P29: =SUM(P27:P28) -> 0 | Q29: =ROUND(R29*2/12,0) -> 0 | R29: =SUM(R27:R28) -> 0
A30: 8 | B30: 宁波 | C30: 存量部分 | F30: 720 | G30: 4632 | H30: 21276 | J30: 0 | K30: 2628 | L30: 5112 | N30: 0 | P30: 0 | R30: 0
C31: 增量部分 | F31: 226 | G31: 1322 | H31: 298 | J31: 0 | K31: 126 | L31: 108 | N31: 0 | P31: 0 | R31: 0
C32: 合计 | D32: =E32+I32+M32+O32+Q32 -> 20104 | E32: =ROUND((F32*4+G32*6+H32*8)/12,0) -> 17675 | F32: =SUM(F30:F31) -> 946 | G32: =SUM(G30:G31) -> 5954 | H32: =SUM(H30:H31) -> 21574 | I32: =ROUND((J32*2+K32*3+L32*4)/12,0) -> 2429 | J32: =SUM(J30:J31) -> 0 | K32: =SUM(K30:K31) -> 2754 | L32: =SUM(L30:L31) -> 5220 | M32: =ROUND(N32*6/12,0) -> 0 | N32: =SUM(N30:N31) -> 0 | O32: =ROUND(P32*2/12,0) -> 0 | P32: =SUM(P30:P31) -> 0 | Q32: =ROUND(R32*2/12,0) -> 0 | R32: =SUM(R30:R31) -> 0
A33: 9 | B33: 安徽 | C33: 存量部分 | F33: 5658 | G33: 43281 | H33: 48054 | J33: 0 | K33: 5760 | L33: 33144 | N33: 0 | P33: 0 | R33: 0
C34: 增量部分 | F34: 3735 | G34: 6018 | H34: 6793 | J34: 0 | K34: 14 | L34: 144 | N34: 0 | P34: 0 | R34: 0
C35: 合计 | D35: =E35+I35+M35+O35+Q35 -> 76885 | E35: =ROUND((F35*4+G35*6+H35*8)/12,0) -> 64345 | F35: =SUM(F33:F34) -> 9393 | G35: =SUM(G33:G34) -> 49299 | H35: =SUM(H33:H34) -> 54847 | I35: =ROUND((J35*2+K35*3+L35*4)/12,0) -> 12540 | J35: =SUM(J33:J34) -> 0 | K35: =SUM(K33:K34) -> 5774 | L35: =SUM(L33:L34) -> 33288 | M35: =ROUND(N35*6/12,0) -> 0 | N35: =SUM(N33:N34) -> 0 | O35: =ROUND(P35*2/12,0) -> 0 | P35: =SUM(P33:P34) -> 0 | Q35: =ROUND(R35*2/12,0) -> 0 | R35: =SUM(R33:R34) -> 0
A36: 10 | B36: 福建（不含厦门） | C36: 存量部分 | F36: 10548 | G36: 56532 | H36: 35532 | J36: 0 | K36: 2040 | L36: 12000 | N36: 0 | P36: 0 | R36: 0
C37: 增量部分 | F37: 661 | G37: 2619 | H37: 1845 | J37: 0 | K37: 0 | L37: 0 | N37: 0 | P37: 0 | R37: 0
C38: 合计 | D38: =E38+I38+M38+O38+Q38 -> 62740 | E38: =ROUND((F38*4+G38*6+H38*8)/12,0) -> 58230 | F38: =SUM(F36:F37) -> 11209 | G38: =SUM(G36:G37) -> 59151 | H38: =SUM(H36:H37) -> 37377 | I38: =ROUND((J38*2+K38*3+L38*4)/12,0) -> 4510 | J38: =SUM(J36:J37) -> 0 | K38: =SUM(K36:K37) -> 2040 | L38: =SUM(L36:L37) -> 12000 | M38: =ROUND(N38*6/12,0) -> 0 | N38: =SUM(N36:N37) -> 0 | O38: =ROUND(P38*2/12,0) -> 0 | P38: =SUM(P36:P37) -> 0 | Q38: =ROUND(R38*2/12,0) -> 0 | R38: =SUM(R36:R37) -> 0
A39: 11 | B39: 江西 | C39: 存量部分 | F39: 2736 | G39: 51180 | H39: 18875 | J39: 0 | K39: 24 | L39: 12576 | N39: 0 | P39: 0 | R39: 0
C40: 增量部分 | F40: 302 | G40: 3478 | H40: 1569 | J40: 0 | K40: 0 | L40: 424 | N40: 0 | P40: 0 | R40: 0
C41: 合计 | D41: =E41+I41+M41+O41+Q41 -> 46310 | E41: =ROUND((F41*4+G41*6+H41*8)/12,0) -> 41971 | F41: =SUM(F39:F40) -> 3038 | G41: =SUM(G39:G40) -> 54658 | H41: =SUM(H39:H40) -> 20444 | I41: =ROUND((J41*2+K41*3+L41*4)/12,0) -> 4339 | J41: =SUM(J39:J40) -> 0 | K41: =SUM(K39:K40) -> 24 | L41: =SUM(L39:L40) -> 13000 | M41: =ROUND(N41*6/12,0) -> 0 | N41: =SUM(N39:N40) -> 0 | O41: =ROUND(P41*2/12,0) -> 0 | P41: =SUM(P39:P40) -> 0 | Q41: =ROUND(R41*2/12,0) -> 0 | R41: =SUM(R39:R40) -> 0
A42: 12 | B42: 山东（不含青岛） | C42: 存量部分 | F42: 76132 | G42: 185257 | H42: 60996 | J42: 0 | K42: 1320 | L42: 74992 | N42: 0 | P42: 0 | R42: 0
C43: 增量部分 | F43: 455 | G43: 4705 | H43: 4717 | J43: 0 | K43: 268 | L43: 999 | N43: 330 | P43: 0 | R43: 0
C44: 合计 | D44: =E44+I44+M44+O44+Q44 -> 190211 | E44: =ROUND((F44*4+G44*6+H44*8)/12,0) -> 164319 | F44: =SUM(F42:F43) -> 76587 | G44: =SUM(G42:G43) -> 189962 | H44: =SUM(H42:H43) -> 65713 | I44: =ROUND((J44*2+K44*3+L44*4)/12,0) -> 25727 | J44: =SUM(J42:J43) -> 0 | K44: =SUM(K42:K43) -> 1588 | L44: =SUM(L42:L43) -> 75991 | M44: =ROUND(N44*6/12,0) -> 165 | N44: =SUM(N42:N43) -> 330 | O44: =ROUND(P44*2/12,0) -> 0 | P44: =SUM(P42:P43) -> 0 | Q44: =ROUND(R44*2/12,0) -> 0 | R44: =SUM(R42:R43) -> 0
A45: 13 | B45: 河南 | C45: 存量部分 | F45: 45984 | G45: 118752 | H45: 88452 | J45: 0 | K45: 1272 | L45: 25015 | N45: 264 | P45: 0 | R45: 0
C46: 增量部分 | F46: 792 | G46: 10285 | H46: 6946 | J46: 0 | K46: 0 | L46: 0 | N46: 576 | P46: 0 | R46: 0
C47: 合计 | D47: =E47+I47+M47+O47+Q47 -> 152785 | E47: =ROUND((F47*4+G47*6+H47*8)/12,0) -> 143709 | F47: =SUM(F45:F46) -> 46776 | G47: =SUM(G45:G46) -> 129037 | H47: =SUM(H45:H46) -> 95398 | I47: =ROUND((J47*2+K47*3+L47*4)/12,0) -> 8656 | J47: =SUM(J45:J46) -> 0 | K47: =SUM(K45:K46) -> 1272 | L47: =SUM(L45:L46) -> 25015 | M47: =ROUND(N47*6/12,0) -> 420 | N47: =SUM(N45:N46) -> 840 | O47: =ROUND(P47*2/12,0) -> 0 | P47: =SUM(P45:P46) -> 0 | Q47: =ROUND(R47*2/12,0) -> 0 | R47: =SUM(R45:R46) -> 0
A48: 14 | B48: 湖南 | C48: 存量部分 | F48: 6852 | G48: 71059 | H48: 124296 | J48: 0 | K48: 1392 | L48: 44683 | N48: 0 | P48: 0 | R48: 0
C49: 增量部分 | F49: 230 | G49: 8696 | H49: 12981 | J49: 0 | K49: 0 | L49: 0 | N49: 0 | P49: 0 | R49: 0
C50: 合计 | D50: =E50+I50+M50+O50+Q50 -> 148998 | E50: =ROUND((F50*4+G50*6+H50*8)/12,0) -> 133756 | F50: =SUM(F48:F49) -> 7082 | G50: =SUM(G48:G49) -> 79755 | H50: =SUM(H48:H49) -> 137277 | I50: =ROUND((J50*2+K50*3+L50*4)/12,0) -> 15242 | J50: =SUM(J48:J49) -> 0 | K50: =SUM(K48:K49) -> 1392 | L50: =SUM(L48:L49) -> 44683 | M50: =ROUND(N50*6/12,0) -> 0 | N50: =SUM(N48:N49) -> 0 | O50: =ROUND(P50*2/12,0) -> 0 | P50: =SUM(P48:P49) -> 0 | Q50: =ROUND(R50*2/12,0) -> 0 | R50: =SUM(R48:R49) -> 0
A51: 15 | B51: 广东（不含深圳） | C51: 存量部分 | F51: 19214 | G51: 170144 | H51: 158929 | J51: 0 | K51: 3096 | L51: 33027 | N51: 900 | P51: 0 | R51: 0
C52: 增量部分 | F52: 1118 | G52: 11860 | H52: 1963 | J52: 0 | K52: 0 | L52: 0 | N52: 33 | P52: 0 | R52: 0
C53: 合计 | D53: =E53+I53+M53+O53+Q53 -> 217291 | E53: =ROUND((F53*4+G53*6+H53*8)/12,0) -> 205041 | F53: =SUM(F51:F52) -> 20332 | G53: =SUM(G51:G52) -> 182004 | H53: =SUM(H51:H52) -> 160892 | I53: =ROUND((J53*2+K53*3+L53*4)/12,0) -> 11783 | J53: =SUM(J51:J52) -> 0 | K53: =SUM(K51:K52) -> 3096 | L53: =SUM(L51:L52) -> 33027 | M53: =ROUND(N53*6/12,0) -> 467 | N53: =SUM(N51:N52) -> 933 | O53: =ROUND(P53*2/12,0) -> 0 | P53: =SUM(P51:P52) -> 0 | Q53: =ROUND(R53*2/12,0) -> 0 | R53: =SUM(R51:R52) -> 0
A54: 16 | B54: 深圳 | C54: 存量部分 | F54: 10819 | G54: 26677 | H54: 138489 | J54: 0 | K54: 0 | L54: 147 | N54: 0 | P54: 0 | R54: 0
C55: 增量部分 | F55: 40 | G55: 1344 | H55: 10 | J55: 0 | K55: 0 | L55: 0 | N55: 0 | P55: 0 | R55: 0
C56: 合计 | D56: =E56+I56+M56+O56+Q56 -> 110012 | E56: =ROUND((F56*4+G56*6+H56*8)/12,0) -> 109963 | F56: =SUM(F54:F55) -> 10859 | G56: =SUM(G54:G55) -> 28021 | H56: =SUM(H54:H55) -> 138499 | I56: =ROUND((J56*2+K56*3+L56*4)/12,0) -> 49 | J56: =SUM(J54:J55) -> 0 | K56: =SUM(K54:K55) -> 0 | L56: =SUM(L54:L55) -> 147 | M56: =ROUND(N56*6/12,0) -> 0 | N56: =SUM(N54:N55) -> 0 | O56: =ROUND(P56*2/12,0) -> 0 | P56: =SUM(P54:P55) -> 0 | Q56: =ROUND(R56*2/12,0) -> 0 | R56: =SUM(R54:R55) -> 0
A57: 17 | B57: 海南 | C57: 存量部分 | F57: 1656 | G57: 8580 | H57: 11616 | J57: 0 | K57: 0 | L57: 5496 | N57: 0 | P57: 0 | R57: 0
C58: 增量部分 | F58: 80 | G58: 1287 | H58: 233 | J58: 0 | K58: 0 | L58: 0 | N58: 0 | P58: 0 | R58: 0
C59: 合计 | D59: =E59+I59+M59+O59+Q59 -> 15244 | E59: =ROUND((F59*4+G59*6+H59*8)/12,0) -> 13412 | F59: =SUM(F57:F58) -> 1736 | G59: =SUM(G57:G58) -> 9867 | H59: =SUM(H57:H58) -> 11849 | I59: =ROUND((J59*2+K59*3+L59*4)/12,0) -> 1832 | J59: =SUM(J57:J58) -> 0 | K59: =SUM(K57:K58) -> 0 | L59: =SUM(L57:L58) -> 5496 | M59: =ROUND(N59*6/12,0) -> 0 | N59: =SUM(N57:N58) -> 0 | O59: =ROUND(P59*2/12,0) -> 0 | P59: =SUM(P57:P58) -> 0 | Q59: =ROUND(R59*2/12,0) -> 0 | R59: =SUM(R57:R58) -> 0
A60: 18 | B60: 重庆 | C60: 存量部分 | F60: 1128 | G60: 6108 | H60: 6660 | J60: 0 | K60: 6684 | L60: 12640 | N60: 0 | P60: 0 | R60: 0
C61: 增量部分 | F61: 126 | G61: 1342 | H61: 1874 | J61: 0 | K61: 68 | L61: 5064 | N61: 0 | P61: 0 | R61: 0
C62: 合计 | D62: =E62+I62+M62+O62+Q62 -> 17421 | E62: =ROUND((F62*4+G62*6+H62*8)/12,0) -> 9832 | F62: =SUM(F60:F61) -> 1254 | G62: =SUM(G60:G61) -> 7450 | H62: =SUM(H60:H61) -> 8534 | I62: =ROUND((J62*2+K62*3+L62*4)/12,0) -> 7589 | J62: =SUM(J60:J61) -> 0 | K62: =SUM(K60:K61) -> 6752 | L62: =SUM(L60:L61) -> 17704 | M62: =ROUND(N62*6/12,0) -> 0 | N62: =SUM(N60:N61) -> 0 | O62: =ROUND(P62*2/12,0) -> 0 | P62: =SUM(P60:P61) -> 0 | Q62: =ROUND(R62*2/12,0) -> 0 | R62: =SUM(R60:R61) -> 0
A63: 19 | B63: 四川* | C63: 存量部分 | F63: 14718 | G63: 20542 | H63: 37620 | J63: 0 | K63: 6422 | L63: 22704 | N63: 120 | P63: 0 | R63: 0
C64: 增量部分 | F64: 875 | G64: 7172 | H64: 8629 | J64: 0 | K64: 102 | L64: 974 | N64: 0 | P64: 0 | R64: 0
C65: 合计 | D65: =E65+I65+M65+O65+Q65 -> 59453 | E65: =ROUND((F65*4+G65*6+H65*8)/12,0) -> 49869 | F65: =SUM(F63:F64) -> 15593 | G65: 27709 | H65: 46225 | I65: =ROUND((J65*2+K65*3+L65*4)/12,0) -> 9524 | J65: =SUM(J63:J64) -> 0 | K65: =SUM(K63:K64) -> 6524 | L65: =SUM(L63:L64) -> 23678 | M65: =ROUND(N65*6/12,0) -> 60 | N65: =SUM(N63:N64) -> 120 | O65: =ROUND(P65*2/12,0) -> 0 | P65: =SUM(P63:P64) -> 0 | Q65: =ROUND(R65*2/12,0) -> 0 | R65: =SUM(R63:R64) -> 0
A66: 20 | B66: 云南 | C66: 存量部分 | F66: 11482 | G66: 28004 | H66: 4844 | J66: 0 | K66: 3540 | L66: 15012 | N66: 0 | P66: 0 | R66: 0
C67: 增量部分 | F67: 450 | G67: 2859 | H67: 1981 | J67: 0 | K67: 0 | L67: 24 | N67: 0 | P67: 0 | R67: 0
C68: 合计 | D68: =E68+I68+M68+O68+Q68 -> 29856 | E68: =ROUND((F68*4+G68*6+H68*8)/12,0) -> 23959 | F68: =SUM(F66:F67) -> 11932 | G68: =SUM(G66:G67) -> 30863 | H68: =SUM(H66:H67) -> 6825 | I68: =ROUND((J68*2+K68*3+L68*4)/12,0) -> 5897 | J68: =SUM(J66:J67) -> 0 | K68: =SUM(K66:K67) -> 3540 | L68: =SUM(L66:L67) -> 15036 | M68: =ROUND(N68*6/12,0) -> 0 | N68: =SUM(N66:N67) -> 0 | O68: =ROUND(P68*2/12,0) -> 0 | P68: =SUM(P66:P67) -> 0 | Q68: =ROUND(R68*2/12,0) -> 0 | R68: =SUM(R66:R67) -> 0
A69: 21 | B69: 西藏 | C69: 存量部分 | F69: 468 | G69: 60 | H69: 384 | J69: 0 | K69: 336 | L69: 3072 | N69: 0 | P69: 0 | R69: 0
C70: 增量部分 | F70: 0 | G70: 137 | H70: 0 | J70: 0 | K70: 0 | L70: 629 | N70: 0 | P70: 0 | R70: 0
C71: 合计 | D71: =E71+I71+M71+O71+Q71 -> 1829 | E71: =ROUND((F71*4+G71*6+H71*8)/12,0) -> 511 | F71: =SUM(F69:F70) -> 468 | G71: =SUM(G69:G70) -> 197 | H71: =SUM(H69:H70) -> 384 | I71: =ROUND((J71*2+K71*3+L71*4)/12,0) -> 1318 | J71: =SUM(J69:J70) -> 0 | K71: =SUM(K69:K70) -> 336 | L71: =SUM(L69:L70) -> 3701 | M71: =ROUND(N71*6/12,0) -> 0 | N71: =SUM(N69:N70) -> 0 | O71: =ROUND(P71*2/12,0) -> 0 | P71: =SUM(P69:P70) -> 0 | Q71: =ROUND(R71*2/12,0) -> 0 | R71: =SUM(R69:R70) -> 0
A72: 22 | B72: 青海 | C72: 存量部分 | F72: 1596 | G72: 8148 | H72: 2796 | J72: 0 | K72: 852 | L72: 2904 | N72: 0 | P72: 0 | R72: 0
C73: 增量部分 | F73: 93 | G73: 834 | H73: 1217 | J73: 0 | K73: 0 | L73: 0 | N73: 0 | P73: 0 | R73: 0
C74: 合计 | D74: =E74+I74+M74+O74+Q74 -> 8910 | E74: =ROUND((F74*4+G74*6+H74*8)/12,0) -> 7729 | F74: =SUM(F72:F73) -> 1689 | G74: =SUM(G72:G73) -> 8982 | H74: =SUM(H72:H73) -> 4013 | I74: =ROUND((J74*2+K74*3+L74*4)/12,0) -> 1181 | J74: =SUM(J72:J73) -> 0 | K74: =SUM(K72:K73) -> 852 | L74: =SUM(L72:L73) -> 2904 | M74: =ROUND(N74*6/12,0) -> 0 | N74: =SUM(N72:N73) -> 0 | O74: =ROUND(P74*2/12,0) -> 0 | P74: =SUM(P72:P73) -> 0 | Q74: =ROUND(R74*2/12,0) -> 0 | R74: =SUM(R72:R73) -> 0
A75: 23 | B75: 宁夏 | C75: 存量部分 | F75: 420 | G75: 2100 | H75: 8040 | J75: 0 | K75: 948 | L75: 840 | N75: 0 | P75: 0 | R75: 0
C76: 增量部分 | F76: 63 | G76: 811 | H76: 845 | J76: 0 | K76: 0 | L76: 0 | N76: 0 | P76: 0 | R76: 0
C77: 合计 | D77: =E77+I77+M77+O77+Q77 -> 8057 | E77: =ROUND((F77*4+G77*6+H77*8)/12,0) -> 7540 | F77: =SUM(F75:F76) -> 483 | G77: =SUM(G75:G76) -> 2911 | H77: =SUM(H75:H76) -> 8885 | I77: =ROUND((J77*2+K77*3+L77*4)/12,0) -> 517 | J77: =SUM(J75:J76) -> 0 | K77: =SUM(K75:K76) -> 948 | L77: =SUM(L75:L76) -> 840 | M77: =ROUND(N77*6/12,0) -> 0 | N77: =SUM(N75:N76) -> 0 | O77: =ROUND(P77*2/12,0) -> 0 | P77: =SUM(P75:P76) -> 0 | Q77: =ROUND(R77*2/12,0) -> 0 | R77: =SUM(R75:R76) -> 0
A78: 24 | B78: 新疆 | C78: 存量部分 | F78: 384 | G78: 1944 | H78: 8448 | J78: 0 | K78: 444 | L78: 11362 | N78: 1 | P78: 0 | R78: 24
C79: 增量部分 | F79: 0 | G79: 327 | H79: 2358 | J79: 0 | K79: 85 | L79: 68 | N79: 0 | P79: 0 | R79: 0
C80: 合计 | D80: =E80+I80+M80+O80+Q80 -> 12415 | E80: =ROUND((F80*4+G80*6+H80*8)/12,0) -> 8468 | F80: =SUM(F78:F79) -> 384 | G80: =SUM(G78:G79) -> 2271 | H80: =SUM(H78:H79) -> 10806 | I80: =ROUND((J80*2+K80*3+L80*4)/12,0) -> 3942 | J80: =SUM(J78:J79) -> 0 | K80: =SUM(K78:K79) -> 529 | L80: =SUM(L78:L79) -> 11430 | M80: =ROUND(N80*6/12,0) -> 1 | N80: =SUM(N78:N79) -> 1 | O80: =ROUND(P80*2/12,0) -> 0 | P80: =SUM(P78:P79) -> 0 | Q80: =ROUND(R80*2/12,0) -> 4 | R80: =SUM(R78:R79) -> 24

Sheet 3-2016
A1: 附件3
A2: 2016年度新能源汽车推广应用补助资金清算汇总表
K3: 单位：万元
A4: 地区序号 | B4: 地区 | C4: 序号 | D4: 车辆生产企业 | E4: 车辆型号 | F4: 核定推广数（辆） | G4: 核定补助标准（万元） | H4: 核定补助资金（万元） | I4: 按整车企业取整后补助资金（万元） | J4: 核减原因 | K4: 此前待扣回预拨资金（万元） | L4: 此次实际扣回预拨资金（万元） | M4: 本次实际安排资金 （万元）
A5: 总计 | F5: 18387 | H5: =SUM(H6:H205)/3 -> 187448.107 | I5: =SUM(I6,I25,I28,I36,I47,I92,I95,I104,I119,I146,I158,I161,I175,I185,I189,I197,I200) -> 187449 | K5: =SUM(K6:K205)/2 -> 166132 | L5: =SUM(L6:L205)/2 -> 71286 | M5: 116163
A6: 1 | B6: 北京市 | C6: 合计 | F6: 10141 | H6: 54142.224 | I6: =SUM(I7,I20,I23) -> 54143 | K6: 32842 | L6: 25384 | M6: 28759
C7: 1 | D7: 北京汽车股份有限公司 | E7: 小计 | F7: 9403 | H7: 50805.724 | I7: 50806 | K7: 22047 | L7: 22047 | M7: 28759
E8: BJ5022XXYV3R2-BEV | F8: 2073 | G8: 6.804 | H8: 14104.692
E9: BJ5022XXYV3R5-BEV | F9: 296 | G9: 6.642 | H9: 1966.032
E10: BJ7000B3D1-BEV | F10: 1 | G10: 4.5 | H10: 4.5
E11: BJ7000B3D5-BEV | F11: 1585 | G11: 4.5 | H11: 7132.5
E12: BJ7000B3D6-BEV | F12: 1243 | G12: 4.5 | H12: 5593.5
E13: BJ7000B3DA-BEV | F13: 20 | G13: 4.5 | H13: 90
E14: BJ7000C5E1-BEV | F14: 65 | G14: 4.5 | H14: 292.5
E15: BJ7000C5E1-BEV | F15: 3082 | G15: 5.5 | H15: 16951
E16: BJ7000C7H3-BEV | F16: 63 | G16: 4.5 | H16: 283.5
E17: BJ7000U3D-BEV | F17: 878 | G17: 4.5 | H17: 3951
E18: BJ7001B3D2-BEV | F18: 97 | G18: 4.5 | H18: 436.5
E19: BJ7002B3D2-BEV | F19: 0 | H19: 0 | J19: 核减138辆，原因为：现场核查不通过
C20: 2 | D20: 北京新能源汽车股份有限公司 | E20: 小计 | F20: 737 | H20: 3316.5 | I20: =ROUND(H20,0) -> 3317 | K20: 8050 | L20: 3317 | M20: 0
E21: BJ7001BPH1-BEV | F21: 695 | G21: 4.5 | H21: 3127.5
E22: BJ7001BPH2-BEV | F22: 42 | G22: 4.5 | H22: 189
C23: 3 | D23: 北汽福田汽车股份有限公司 | E23: 小计 | F23: 1 | H23: 20 | I23: =ROUND(H23,0) -> 20 | K23: 2745 | L23: 20 | M23: 0
E24: BJ6127PHEVUA-1 | F24: 1 | G24: 20 | H24: 20
A25: 2 | B25: 河北省 | C25: 合计 | F25: 3 | H25: 69 | I25: =SUM(I26:I27) -> 69 | K25: 1708 | L25: 69 | M25: 0
C26: 1 | D26: 河北长安汽车有限公司 | E26: 小计 | F26: 3 | H26: 69 | I26: =ROUND(H26,0) -> 69 | K26: 1708 | L26: 69 | M26: 0
E27: SC6611DBEV | F27: 3 | G27: 23 | H27: 69
A28: 3 | B28: 山西省 | C28: 合计 | F28: 2039 | H28: 20604.114 | I28: =SUM(I29:I35) -> 20604 | K28: 0 | L28: 0 | M28: 20604
C29: 1 | D29: 大运汽车股份有限公司 | E29: 小计 | F29: 1290 | H29: 15093 | I29: =ROUND(H29,0) -> 15093 | K29: 0 | L29: 0 | M29: 15093
E30: DYX5040XXYBEV1CAH0 | F30: 889 | G30: 11.7 | H30: 10401.3
E31: DYX5040XXYBEV1ZAH0 | F31: 401 | G31: 11.7 | H31: 4691.7
C32: 2 | D32: 山西成功汽车制造有限公司 | E32: 小计 | F32: 749 | H32: 5511.114 | I32: =ROUND(H32,0) -> 5511 | K32: 0 | L32: 0 | M32: 5511
E33: SCH5022XXY-BEV1 | F33: 18 | G33: 6.822 | H33: 122.796 | J33: 核减1辆，原因为：未按有关要求上传运行数据
E34: SCH5022XXY-BEV2 | F34: 531 | G34: 7.578 | H34: 4023.918 | J34: 核减21辆，原因为：未按有关要求上传运行数据
E35: SCH5022XXY-BEV5 | F35: 200 | G35: 6.822 | H35: 1364.4 | J35: 核减3辆，原因为：未按有关要求上传运行数据
A36: 4 | B36: 上海市 | C36: 合计 | F36: 305 | H36: 3674.8 | I36: =SUM(I37:I46) -> 3675 | K36: 17555 | L36: 3675 | M36: 0
C37: 1 | D37: 上海汽车集团股份有限公司 | E37: 小计 | F37: 45 | H37: 139.5 | I37: =ROUND(H37,0) -> 140 | K37: 14008 | L37: 140 | M37: 0
E38: CSA7001BEV | F38: 3 | G38: 4.5 | H38: 13.5 | J38: 核减1辆，原因为：未按有关要求上传运行数据
E39: CSA7144CDPHEV | F39: 8 | G39: 3 | H39: 24
E40: CSA7154TDPHEV | F40: 14 | G40: 3 | H40: 42
E41: CSA7155TDPHEV | F41: 20 | G41: 3 | H41: 60 | J41: 核减6辆，原因为：未按有关要求上传运行数据
C42: 2 | D42: 上汽大通汽车有限公司 | E42: 小计 | F42: 260 | H42: 3535.3 | I42: =ROUND(H42,0) -> 3535 | K42: 3547 | L42: 3535 | M42: 0
E43: SH5040XXYA7BEV | F43: 61 | G43: 10.8 | H43: 658.8
E44: SH5041XXYA7BEV | F44: 142 | G44: 13.5 | H44: 1917
E45: SH6521C1BEV | F45: 19 | G45: 4.5 | H45: 85.5
E46: SH6601A4BEV | F46: 38 | G46: 23 | H46: 874
A47: 5 | B47: 江苏省 | C47: 合计 | F47: =SUM(F48,F52,F59,F61,F79,F83) -> 531 | H47: =SUM(H48,H52,H59,H61,H79,H83) -> 13053.068 | I47: =SUM(I48:I91) -> 13053 | K47: 15454 | L47: 6498 | M47: 6555
C48: 1 | D48: 江苏九龙汽车制造有限公司 | E48: 小计 | F48: 13 | H48: 340 | I48: =ROUND(H48,0) -> 340 | K48: 2044 | L48: 340 | M48: 0
E49: HKL6600BEV5 | F49: 6 | G49: 25 | H49: 150
E50: HKL6601BEV | F50: 6 | G50: 25 | H50: 150
E51: HKL6801BEV | F51: 1 | G51: 40 | H51: 40
C52: 2 | D52: 江苏陆地方舟新能源电动汽车有限公司 | E52: 小计 | F52: =SUM(F53:F58) -> 27 | H52: =SUM(H53:H58) -> 1080 | I52: =ROUND(H52,0) -> 1080 | K52: 0 | L52: 0 | M52: 1080
E53: RQ5022XXYEVH9 | F53: 0 | G53: 0 | H53: 0 | J53: 需进一步核实后予以清算
E54: RQ6110YEVH4 | F54: 0 | G54: 0 | H54: 0 | J54: 核减12辆，原因为：现场核查不通过
E55: RQ6830GEVH2 | F55: 3 | G55: 40 | H55: 120
E56: RQ6830YEVH11 | F56: 11 | G56: 40 | H56: 440
E57: RQ6830YEVH13 | F57: 2 | G57: 40 | H57: 80
E58: RQ6830YEVH8 | F58: 11 | G58: 40 | H58: 440
C59: 3 | D59: 金龙联合汽车工业(苏州)有限公司 | E59: 小计 | F59: 1 | H59: 25 | I59: =ROUND(H59,0) -> 25 | K59: 7277 | L59: 25 | M59: 0
E60: KLQ6601BEV1X2 | F60: 1 | G60: 25 | H60: 25
C61: 4 | D61: 南京金龙客车制造有限公司 | E61: 小计 | F61: 210 | H61: 6116.358 | I61: =ROUND(H61,0) -> 6116 | K61: 4433 | L61: 4433 | M61: 1683
E62: NJL5040XXYBEV | F62: 18 | G62: 13.131 | H62: 236.358 | J62: 核减1辆，原因为：未按有关要求上传运行数据
E63: NJL6107BEV | F63: 1 | G63: 50 | H63: 50
E64: NJL6117BEV1 | F64: 10 | G64: 50 | H64: 500
E65: NJL6117BEV10 | F65: 2 | G65: 50 | H65: 100
E66: NJL6118BEV7 | F66: 2 | G66: 50 | H66: 100
E67: NJL6118BEV9 | F67: 9 | G67: 50 | H67: 450
E68: NJL6600BEV32 | F68: 0 | G68: 0 | H68: 0 | J68: 核减175辆，原因为：未按有关要求上传运行数据,现场核查不通过
E69: NJL6600BEV41 | F69: 89 | G69: 25 | H69: 2225 | J69: 核减8辆，原因为：未按有关要求上传运行数据
E70: NJL6600BEV66 | F70: 1 | G70: 25 | H70: 25
E71: NJL6600BEV68 | F71: 9 | G71: 25 | H71: 225
E72: NJL6600BEV69 | F72: 1 | G72: 25 | H72: 25
E73: NJL6601BEV27 | F73: 36 | G73: 25 | H73: 900
E74: NJL6806BEV1 | F74: 5 | G74: 40 | H74: 200
E75: NJL6806BEV2 | F75: 4 | G75: 40 | H75: 160
E76: NJL6810BEV4 | F76: 21 | G76: 40 | H76: 840
E77: NJL6859BEV | F77: 0 | G77: 0 | H77: 0 | J77: 核减1辆，原因为：未按有关要求上传运行数据
E78: NJL6859BEV14 | F78: 2 | G78: 40 | H78: 80
C79: 5 | D79: 南京汽车集团有限公司 | E79: 小计 | F79: 245 | H79: 3905.71 | I79: =ROUND(H79,0) -> 3906 | K79: 789 | L79: 789 | M79: 3117
E80: NJ5057XXYAEV1 | F80: 124 | G80: 13.23 | H80: 1640.52
E81: NJ5057XXYCEV3 | F81: 53 | G81: 13.23 | H81: 701.19
E82: NJ6697DEV2 | F82: 68 | G82: 23 | H82: 1564
C83: 6 | D83: 扬州亚星客车股份有限公司 | E83: 小计 | F83: 35 | H83: 1586 | I83: =ROUND(H83,0) -> 1586 | K83: 911 | L83: 911 | M83: 675
E84: JS6101GHBEV1 | F84: 10 | G84: 50 | H84: 500
E85: JS6108GHEVC9 | F85: 1 | G85: 20 | H85: 20
E86: JS6851GHBEV9 | F86: 8 | G86: 40 | H86: 320
E87: YBL6111HBEV | F87: 1 | G87: 46 | H87: 46
E88: YBL6117HBEV11 | F88: 3 | G88: 50 | H88: 150
E89: YBL6117HBEV3 | F89: 1 | G89: 50 | H89: 50
E90: YBL6117HBEV5 | F90: 9 | G90: 50 | H90: 450
E91: YBL6600BEV3 | F91: 2 | G91: 25 | H91: 50
A92: 6 | B92: 宁波市 | C92: 合计 | F92: 958 | H92: 5269 | I92: =SUM(I93:I94) -> 5269 | K92: 1299 | L92: 1299 | M92: 3970
C93: 1 | D93: 浙江吉利汽车有限公司 | E93: 小计 | F93: 958 | H93: 5269 | I93: =ROUND(H93,0) -> 5269 | K93: 1299 | L93: 1299 | M93: 3970
E94: MR7002BEV03 | F94: 958 | G94: 5.5 | H94: 5269
A95: 7 | B95: 安徽省 | C95: 合计 | F95: 266 | H95: 1156 | I95: =SUM(I96:I103) -> 1156 | K95: 6282 | L95: 975 | M95: 181
C96: 1 | D96: 安徽江淮汽车股份有限公司 | E96: 小计 | F96: 40 | H96: 181 | I96: =ROUND(H96,0) -> 181 | K96: 0 | L96: 0 | M96: 181
E97: HFC7000AEV | F97: 31 | G97: 4.5 | H97: 139.5
E98: HFC7001A1EV | F98: 5 | G98: 4.5 | H98: 22.5
E99: HFC7001AEV | F99: 3 | G99: 4.5 | H99: 13.5
E100: HFC7001EAEV | F100: 1 | G100: 5.5 | H100: 5.5
C101: 2 | D101: 奇瑞汽车股份有限公司 | E101: 小计 | F101: 226 | H101: 975 | I101: =ROUND(H101,0) -> 975 | K101: 6282 | L101: 975 | M101: 0
E102: SQR7000BEVJ00 | F102: 198 | G102: 4.5 | H102: 891
E103: SQR7160PHEVJ42 | F103: 28 | G103: 3 | H103: 84
A104: 8 | B104: 厦门市 | C104: 合计 | F104: 166 | H104: 6654 | I104: =SUM(I105:I118) -> 6654 | K104: 2893 | L104: 2332 | M104: 4322
C105: 1 | D105: 厦门金龙联合汽车工业有限公司 | E105: 小计 | F105: 14 | H105: 555 | I105: =ROUND(H105,0) -> 555 | K105: 1116 | L105: 555 | M105: 0
E106: XMQ6110BCBEVL3 | F106: 3 | G106: 50 | H106: 150
E107: XMQ6113BYBEVL3 | F107: 4 | G107: 50 | H107: 200
E108: XMQ6610CEBEVL4 | F108: 5 | G108: 25 | H108: 125 | J108: 核减1辆，原因为：未按有关要求上传运行数据
E109: XMQ6821CYBEVL2 | F109: 2 | G109: 40 | H109: 80
C110: 2 | D110: 厦门金龙旅行车有限公司 | E110: 小计 | F110: 152 | H110: 6099 | I110: =ROUND(H110,0) -> 6099 | K110: 1777 | L110: 1777 | M110: 4322
E111: XML6102JEV70 | F111: 2 | G111: 50 | H111: 100
E112: XML6125JEVF0C | F112: 5 | G112: 50 | H112: 250
E113: XML6609JEVG0 | F113: 2 | G113: 25 | H113: 50
E114: XML6700JEV80 | F114: 1 | G114: 19 | H114: 19
E115: XML6809JEV10 | F115: 130 | G115: 40 | H115: 5200
E116: XML6809JEV70 | F116: 7 | G116: 40 | H116: 280
E117: XML6827JEV30 | F117: 1 | G117: 40 | H117: 40
E118: XML6865JEV10C | F118: 4 | G118: 40 | H118: 160
A119: 9 | B119: 山东省 | C119: 合计 | F119: 914 | H119: =SUM(H120,H122,H125,H129) -> 25845.618 | I119: =SUM(I120:I145) -> 25846 | K119: 8103 | L119: 8056 | M119: 17790
C120: 1 | D120: 山东蓝诺汽车有限公司 | E120: 小计 | F120: 1 | H120: 7.092 | I120: =ROUND(H120,0) -> 7 | K120: 54 | L120: 7 | M120: 0
E121: KRD5022XXYBEV02 | F121: 1 | G121: 7.092 | H121: 7.092
C122: 2 | D122: 烟台舒驰客车有限责任公司 | E122: 小计 | F122: 99 | H122: 4930 | I122: 4930 | K122: 1012 | L122: 1012 | M122: 3918
E123: YTK6118EV2 | F123: 97 | G123: 50 | H123: 4850 | J123: 核减1辆，原因为：未按有关要求上传运行数据
E124: YTK6810EV1 | F124: 2 | G124: 40 | H124: 80
C125: 3 | D125: 中国重汽集团济南豪沃客车有限公司 | E125: 小计 | F125: 32 | H125: 672 | I125: 672 | K125: 118 | L125: 118 | M125: 554
E126: JK6106GBEV3 | F126: 0 | G126: 0 | H126: 0 | J126: 需进一步核实后予以清算
E127: JK6660GBEV2 | F127: 32 | G127: 21 | H127: 672
E128: JK6806GBEV | F128: 0 | G128: 0 | H128: 0 | J128: 需进一步核实后予以清算
C129: 4 | D129: 中通客车控股股份有限公司 | E129: 小计 | F129: 782 | H129: 20236.526 | I129: =ROUND(H129,0) -> 20237 | K129: 6919 | L129: 6919 | M129: 13318
E130: LCK5021XXYBEV1 | F130: 1 | G130: 5.526 | H130: 5.526
E131: LCK6108EVG5 | F131: 3 | G131: 50 | H131: 150
E132: LCK6118PHEV | F132: 7 | G132: 20 | H132: 140
E133: LCK6600BEV1 | F133: 442 | G133: 25 | H133: 11050
E134: LCK6600BEV5 | F134: 1 | G134: 25 | H134: 25
E135: LCK6609EV2 | F135: 60 | G135: 25 | H135: 1500
E136: LCK6609EV3 | F136: 1 | G136: 25 | H136: 25
E137: LCK6609EV5 | F137: 208 | G137: 25 | H137: 5200
E138: LCK6609EVG2 | F138: 5 | G138: 25 | H138: 125
E139: LCK6660EVG1 | F139: 1 | G139: 25 | H139: 25
E140: LCK6668EVG | F140: 6 | G140: 21 | H140: 126
E141: LCK6700BEV1 | F141: 1 | G141: 25 | H141: 25
E142: LCK6809EVG | F142: 8 | G142: 40 | H142: 320
E143: LCK6809EVG6 | F143: 2 | G143: 40 | H143: 80
E144: LCK6810EVG | F144: 4 | G144: 40 | H144: 160
E145: LCK6810EVG7 | F145: 32 | G145: 40 | H145: 1280
A146: 10 | B146: 湖北省 | C146: 合计 | F146: 1632 | H146: 17998.254 | I146: =SUM(I147:I157) -> 17998 | K146: 8706 | L146: 8706 | M146: 9292
C147: 1 | D147: 东风汽车集团有限公司 | E147: 小计 | F147: 1632 | H147: 17998.254 | I147: =ROUND(H147,0) -> 17998 | K147: 8706 | L147: 8706 | M147: 9292
E148: DFM7000H2ABEV1 | F148: 16 | G148: 4.5 | H148: 72
E149: DFM7000H2DBEV1 | F149: 5 | G149: 4.5 | H149: 22.5
E150: EQ5020XXYTBEV2 | F150: 0 | G150: 0 | H150: 0 | J150: 核减3辆，原因为：未按有关要求上传运行数据
E151: EQ5021XXYTBEV2 | F151: 0 | G151: 0 | H151: 0 | J151: 核减47辆，原因为：未按有关要求上传运行数据
E152: EQ5044XXYTBEV | F152: 729 | G152: 8.226 | H152: 5996.754 | J152: 核减11辆，原因为：未按有关要求上传运行数据
E153: EQ5070XXYTBEV | F153: 0 | G153: 0 | H153: 0 | J153: 核减2辆，原因为：该车型不在推荐目录内
E154: EQ5070XXYTBEV10 | F154: 37 | G154: 13.5 | H154: 499.5
E155: EQ5070XXYTBEV3 | F155: 493 | G155: 13.5 | H155: 6655.5 | J155: 核减14辆，原因为：未按有关要求上传运行数据
E156: EQ5070XXYTBEV5 | F156: 352 | G156: 13.5 | H156: 4752 | J156: 核减3辆，原因为：未按有关要求上传运行数据
E157: EQ5160XXYTBEV1 | F157: 0 | G157: 0 | H157: 0 | J157: 核减4辆，原因为：未按有关要求上传运行数据
A158: 11 | B158: 湖南省 | C158: 合计 | F158: 33 | H158: 759 | I158: =SUM(I159:I160) -> 759 | K158: 0 | L158: 0 | M158: 759
C159: 1 | D159: 湖南南车时代电动汽车股份有限公司 | E159: 小计 | F159: 33 | H159: 759 | I159: =ROUND(H159,0) -> 759 | K159: 0 | L159: 0 | M159: 759
E160: TEG6600EV03 | F160: 33 | G160: 23 | H160: 759
A161: 12 | B161: 广东省 | C161: 合计 | F161: 670 | H161: 25145 | I161: =SUM(I162:I174) -> 25145 | K161: 7435 | L161: 7435 | M161: 17710
C162: 1 | D162: 广州汽车集团乘用车有限公司 | E162: 小计 | F162: 174 | H162: 522 | I162: =ROUND(H162,0) -> 522 | K162: 0 | L162: 0 | M162: 522
E163: GAC7100SHEVB5 | F163: 1 | G163: 3 | H163: 3
E164: GAC7100SHEVD5 | F164: 168 | G164: 3 | H164: 504
E165: GAC7100SHEVD5A | F165: 5 | G165: 3 | H165: 15
C166: 2 | D166: 珠海广通汽车有限公司 | E166: 小计 | F166: 496 | H166: 24623 | I166: =ROUND(H166,0) -> 24623 | K166: 7435 | L166: 7435 | M166: 17188
E167: GTQ6105BEVB21 | F167: 15 | G167: 50 | H167: 750
E168: GTQ6118BEV2 | F168: 429 | G168: 50 | H168: 21450
E169: GTQ6123BEVBT3 | F169: 18 | G169: 42 | H169: 756
E170: GTQ6129BEVHT7 | F170: 1 | G170: 50 | H170: 50
E171: GTQ6131BEVST3 | F171: 22 | G171: 50.4 | H171: 1108.8
E172: GTQ6146BEVBT8 | F172: 8 | G172: 50.4 | H172: 403.2
E173: GTQ6606BEV1 | F173: 1 | G173: 25 | H173: 25
E174: GTQ6858BEVB2 | F174: 2 | G174: 40 | H174: 80
A175: 13 | B175: 深圳市 | C175: 合计 | F175: 367 | H175: 2493.5 | I175: =SUM(I176:I184) -> 2494 | K175: 28785 | L175: 2494 | M175: 0
C176: 1 | D176: 比亚迪汽车工业有限公司 | E176: 小计 | F176: 367 | H176: 2493.5 | I176: =ROUND(H176,0) -> 2494 | K176: 28785 | L176: 2494 | M176: 0
E177: BYD6480STHEV | F177: 8 | G177: 3 | H177: 24
E178: BYD6710HLEV | F178: 4 | G178: 23 | H178: 92
E179: BYD7006BEVH | F179: 24 | G179: 5.5 | H179: 132
E180: CK6100LGEV1 | F180: 7 | G180: 50 | H180: 350
E181: CK6120LLEV | F181: 1 | G181: 50 | H181: 50
E182: CK6800LZEV2 | F182: 2 | G182: 40 | H182: 80 | J182: 核减1辆，原因为：未按有关要求上传运行数据
E183: QCJ7006BEVF | F183: 19 | G183: 5.5 | H183: 104.5
E184: QCJ7007BEV | F184: 302 | G184: 5.5 | H184: 1661
A185: 14 | B185: 重庆市 | C185: 合计 | F185: 22 | H185: 137.844 | I185: =SUM(I186:I188) -> 138 | K185: 2517 | L185: 138 | M185: 0
C186: 1 | D186: 重庆瑞驰汽车实业有限公司 | E186: 小计 | F186: 22 | H186: 137.844 | I186: =ROUND(H186,0) -> 138 | K186: 2517 | L186: 138 | M186: 0
E187: CRC5022XXYB-LBEV | F187: 10 | G187: 4.842 | H187: 48.42 | J187: 核减1辆，原因为：未按有关要求上传运行数据
E188: CRC5030XXYB-LBEV | F188: 12 | G188: 7.452 | H188: 89.424
A189: 15 | B189: 四川省 | C189: 合计 | F189: 319 | H189: 10236.459 | I189: =SUM(I190:I196) -> 10236 | K189: 4015 | L189: 4015 | M189: 6221
C190: 1 | D190: 中植一客成都汽车有限公司 | E190: 小计 | F190: 319 | H190: 10236.459 | I190: =ROUND(H190,0) -> 10236 | K190: 4015 | L190: 4015 | M190: 6221
E191: CDL5020XXYBEV2 | F191: 1 | G191: 6.867 | H191: 6.867
E192: CDL5020XXYBEV3 | F192: 29 | G192: 7.488 | H192: 217.152
E193: CDL5021XXYBEV | F193: 16 | G193: 7.965 | H193: 127.44
E194: CDL6606LRBEV | F194: 69 | G194: 25 | H194: 1725
E195: CDL6810LRBEV | F195: 79 | G195: 40 | H195: 3160
E196: CDL6810LRBEV1 | F196: 125 | G196: 40 | H196: 5000
A197: 16 | B197: 云南省 | C197: 合计 | F197: 8 | H197: 55.008 | I197: =SUM(I198:I199) -> 55 | K197: 373 | L197: 55 | M197: 0
C198: 1 | D198: 云南航天神州汽车有限公司 | E198: 小计 | F198: 8 | H198: 55.008 | I198: =ROUND(H198,0) -> 55 | K198: 373 | L198: 55 | M198: 0
E199: YH5022XXYBEV | F199: 8 | G199: 6.876 | H199: 55.008
A200: 17 | B200: 陕西省 | C200: 合计 | F200: 13 | H200: 155.218 | I200: =SUM(I201:I204) -> 155 | K200: 28165 | L200: 155 | M200: 0
... 5 more rows

Sheet 4-2017
A1: 附件4
A2: 2017年度新能源汽车推广应用补助资金清算汇总表
K3: 单位：万元
A4: 地区序号 | B4: 地区 | C4: 序号 | D4: 车辆生产企业 | E4: 车辆型号 | F4: 核定推广数（辆） | G4: 核定补助标准（万元） | H4: 核定补助资金（万元） | I4: 按整车企业取整后补助资金（万元） | J4: 核减原因 | K4: 此前待扣回预拨资金（万元） | L4: 此次实际扣回预拨资金（万元） | M4: 本次实际安排资金 （万元）
A5: 总计 | F5: =SUM(F6:F851)/3 -> 94170 | H5: =SUM(H6:H851)/3 -> 792872.5506 | I5: =SUM(I6:I851)/2 -> 792876 | K5: =SUM(K6:K851)/2 -> 273827 | L5: =SUM(L6:L851)/2 -> 156625 | M5: =SUM(M6:M851)/2 -> 636251
A6: 1 | B6: 北京市 | C6: 合计 | F6: =SUM(F7:F65)/2 -> 11939 | H6: =SUM(H7:H65)/2 -> 64566.046 | I6: =SUM(I7,I18,I24) -> 64566 | K6: =SUM(K7,K18,K24) -> 7458 | L6: 7458 | M6: 57108
C7: 1 | D7: 北京汽车股份有限公司 | E7: 小计 | F7: 2635 | H7: 11664.684 | I7: =ROUND(H7,0) -> 11665 | K7: 0 | L7: 0 | M7: 11665
E8: BJ5022XXYV3R2-BEV | F8: 89 | G8: 5.436 | H8: 483.804
E9: BJ5023XXYV3RK-BEV | F9: 66 | G9: 6.12 | H9: 403.92
E10: BJ7000B3D5-BEV | F10: 245 | G10: 3.6 | H10: 882
E11: BJ7000C5E1-BEV | F11: 14 | G11: 3.6 | H11: 50.4
E12: BJ7000C5E1-BEV | F12: 334 | G12: 4.4 | H12: 1469.6
E13: BJ7000C5E2-BEV | F13: 1229 | G13: 4.4 | H13: 5407.6
E14: BJ7000C5E4-BEV | F14: 35 | G14: 4.84 | H14: 169.4
E15: BJ7000C5E7-BEV | F15: 94 | G15: 4.84 | H15: 454.96
E16: BJ7000C8G-BEV | F16: 35 | G16: 4.84 | H16: 169.4
E17: BJ7000U3D2-BEV | F17: 494 | G17: 4.4 | H17: 2173.6
C18: 2 | D18: 北京新能源汽车股份有限公司 | E18: 小计 | F18: 8223 | H18: 31890.96 | I18: =ROUND(H18,0) -> 31891 | K18: 4733 | L18: 4733 | M18: 27158
E19: BJ7001BPH1-BEV | F19: 993 | G19: 3.6 | H19: 3574.8
E20: BJ7001BPH2-BEV | F20: 340 | G20: 3.6 | H20: 1224
E21: BJ7001BPH5-BEV | F21: 2118 | G21: 3.96 | H21: 8387.28
E22: BJ7001BPH7-BEV | F22: 4238 | G22: 3.96 | H22: 16782.48
E23: BJ7001BPH8-BEV | F23: 534 | G23: 3.6 | H23: 1922.4
C24: 3 | D24: 北汽福田汽车股份有限公司 | E24: 小计 | F24: 1081 | H24: 21010.402 | I24: =ROUND(H24,0) -> 21010 | K24: 2725 | L24: 2725 | M24: 18285
E25: BJ5023XXYEV1 | F25: 0 | G25: 0 | H25: 0 | J25: 核减1辆，原因为：相关车型不在推荐目录内
E26: BJ5023XXYEV2 | F26: 0 | G26: 0 | H26: 0 | J26: 核减2辆，原因为：相关车型不在推荐目录内
E27: BJ5023XXYEV4 | F27: 3 | G27: 4.6452 | H27: 13.9356
E28: BJ5023XXYEV6 | F28: 0 | G28: 0 | H28: 0 | J28: 核减39辆，原因为：相关车型不在推荐目录内
E29: BJ5023XYZEV1 | F29: 73 | G29: 4.6452 | H29: 339.0996
E30: BJ5048XXYEV2 | F30: 1 | G30: 8.56 | H30: 8.56
E31: BJ5049XXYEV2 | F31: 0 | G31: 0 | H31: 0 | J31: 核减196辆，原因为：相关车型不在推荐目录内
E32: BJ5049XXYEV5 | F32: 85 | G32: 10.22 | H32: 868.7
E33: BJ6103EVUA-1 | F33: 7 | G33: 30 | H33: 210
E34: BJ6105CHEVCA-3 | F34: 3 | G34: 7.65 | H34: 22.95
E35: BJ6105CHEVCA-9 | F35: 3 | G35: 15 | H35: 45
E36: BJ6105EVCA-15 | F36: 2 | G36: 30 | H36: 60
E37: BJ6105EVCA-16 | F37: 43 | G37: 29.8598 | H37: 1283.9714
E38: BJ6105EVCA-18 | F38: 6 | G38: 30 | H38: 180
E39: BJ6105EVCA-20 | F39: 7 | G39: 30 | H39: 210
E40: BJ6105PHEVCA-10 | F40: 2 | G40: 7.5 | H40: 15
E41: BJ6105PHEVCA-16 | F41: 4 | G41: 14.9184 | H41: 59.6736
E42: BJ6105PHEVCA-17 | F42: 8 | G42: 15 | H42: 120
E43: BJ6105PHEVCA-18 | F43: 13 | G43: 15 | H43: 195
E44: BJ6105PHEVCA-7 | F44: 52 | G44: 7.5 | H44: 390
E45: BJ6117EVUA | F45: 34 | G45: 29.8598 | H45: 1015.2332
E46: BJ6117EVUA-2 | F46: 29 | G46: 30 | H46: 870
E47: BJ6117EVUA-3 | F47: 216 | G47: 30 | H47: 6480
E48: BJ6123CHEVCA-5 | F48: 1 | G48: 15 | H48: 15
E49: BJ6123EVCA-32 | F49: 1 | G49: 30 | H49: 30
E50: BJ6123EVCA-33 | F50: 1 | G50: 29.8598 | H50: 29.8598
E51: BJ6123EVCA-37 | F51: 306 | G51: 20 | H51: 6120
E52: BJ6123PHEVCA-15 | F52: 13 | G52: 15 | H52: 195
E53: BJ6123PHEVCA-7 | F53: 7 | G53: 7.5 | H53: 52.5
E54: BJ6123SHEVCA-3 | F54: 12 | G54: 12.432 | H54: 149.184
E55: BJ6127PHEVCA-3 | F55: 7 | G55: 8.436 | H55: 59.052
E56: BJ6680SHEVCA | F56: 77 | G56: 4.5 | H56: 346.5
E57: BJ6805EVCA-2 | F57: 5 | G57: 12 | H57: 60
E58: BJ6805EVCA-8 | F58: 8 | G58: 20 | H58: 160
E59: BJ6851EVCA-8 | F59: 4 | G59: 20 | H59: 80
E60: BJ6851EVCA-9 | F60: 19 | G60: 19.5912 | H60: 372.2328
E61: BJ6852FCEVUH | F61: 17 | G61: 50 | H61: 850
E62: BJ6855CHEVCA-1 | F62: 1 | G62: 7.65 | H62: 7.65
A63: 1 | B63: 北京市 | C63: 3 | D63: 北汽福田汽车股份有限公司 | E63: BJ6855CHEVCA-2 | F63: 9 | G63: 9 | H63: 81
E64: BJ6905CHEVCA | F64: 1 | G64: 6.3 | H64: 6.3
E65: BJ6905CHEVCA-5 | F65: 1 | G65: 9 | H65: 9
A66: 2 | B66: 河北省 | C66: 合计 | F66: =939-80 -> 859 | H66: =SUM(H67,H69) -> 6985.406 | I66: =SUM(I67,I69) -> 6985 | K66: =SUM(K67,K69) -> 11320 | L66: 2096 | M66: 4889
C67: 1 | D67: 长城汽车股份有限公司 | E67: 小计 | F67: 127 | H67: 457.2 | I67: =ROUND(H67,0) -> 457 | K67: 9681 | L67: 457 | M67: 0
E68: CC7000CE00BEV | F68: 127 | G68: 3.6 | H68: 457.2
C69: 2 | D69: 河北长安汽车有限公司 | E69: 小计 | F69: 732 | H69: =SUM(H70:H77) -> 6528.206 | I69: =ROUND(H69,0) -> 6528 | K69: 1639 | L69: 1639 | M69: 4889
E70: SC5033XXYBBEV | F70: 0 | G70: 0 | H70: 0 | J70: 需进一步核实后予以清算
E71: SC5033XXYCBEV | F71: 0 | G71: 0 | H71: 0 | J71: 需进一步核实后予以清算
E72: SC5035XXYDCBBEV | F72: 682 | G72: 8.11 | H72: 5531.02 | J72: 核减1辆，原因为：未按有关要求上传运行数据
E73: SC6805ABBEV | F73: 28 | G73: 19.9062 | H73: 557.3736 | J73: 核减2辆，原因为：不满足行驶里程数要求
E74: SC6805ACBEV | F74: 20 | G74: 20 | H74: 400 | J74: 核减1辆，原因为：不满足行驶里程数要求
E75: SC6833ABEV | F75: 0 | G75: 0 | H75: 0 | J75: 需进一步核实后予以清算
E76: SC6836ABEV | F76: 1 | G76: 19.9062 | H76: 19.9062
E77: SC6836BBEV | F77: 1 | G77: 19.9062 | H77: 19.9062
A78: 3 | B78: 山西省 | C78: 合计 | F78: 4776 | H78: 45824.1476 | I78: =SUM(I79:I107) -> 45823 | K78: =SUM(K79,K100,K102) -> 582 | L78: 582 | M78: 45241
C79: 1 | D79: 成都大运汽车集团有限公司 | E79: 小计 | F79: 3336 | H79: 37758.4604 | I79: =ROUND(H79,0) -> 37758 | K79: 582 | L79: 582 | M79: 37176
E80: CGC5021XXYBEV2W2 | F80: 3 | G80: 6.0264 | H80: 18.0792
E81: CGC5025XXYBEV1NBBFBAML | F81: 4 | G81: 6.0264 | H81: 24.1056
E82: CGC5044XXYBEV1AAAJEAGK | F82: 1 | G82: 6.4152 | H82: 6.4152
E83: CGC5044XXYBEV1AAAJEAHZ | F83: 88 | G83: 6.4152 | H83: 564.5376
E84: CGC5044XXYBEV1LBSKEAGK | F84: 1 | G84: 7.448 | H84: 7.448
E85: CGC5044XXYBEV1NBLJEAGK | F85: 5 | G85: 9.636 | H85: 48.18
E86: CGC5044XXYBEV1NBLJEAGK | F86: 657 | G86: 9.66 | H86: 6346.62
E87: CGC5044XXYBEV1NBLJEAGY | F87: 2013 | G87: 9.64 | H87: 19405.32
E88: CGC5044XXYBEV1NBLJEAGY | F88: 16 | G88: 9.66 | H88: 154.56
E89: CGC5045XLCBEV1Z1 | F89: 3 | G89: 10.143 | H89: 30.429
E90: CGC5045XXYBEV1Z2 | F90: 209 | G90: 10.143 | H90: 2119.887
E91: CGC5045XXYBEV1Z3 | F91: 2 | G91: 9.503 | H91: 19.006
E92: CGC5045XXYBEV2Z1 | F92: 1 | G92: 9.676 | H92: 9.676
E93: CGC6100BEV1K1 | F93: 39 | G93: 29.8512 | H93: 1164.1968
E94: CGC6101BEV1K2 | F94: 27 | G94: 30 | H94: 810
E95: CGC6106BEV1PAQHJATM | F95: 169 | G95: 30 | H95: 5070
E96: CGC6800BEV1K2 | F96: 8 | G96: 20 | H96: 160 | J96: 核减42辆，原因为：相关车型不在推荐目录内
E97: CGC6801BEV1K3 | F97: 52 | G97: 20 | H97: 1040
E98: CGC6806BEV1EAMJHAYM | F98: 10 | G98: 20 | H98: 200
E99: CGC6806BEV1PAMKHAUM | F99: 28 | G99: 20 | H99: 560
C100: 2 | D100: 大运汽车股份有限公司 | E100: 小计 | F100: 1 | H100: 8.4 | I100: =ROUND(H100,0) -> 8 | K100: 0 | L100: 0 | M100: 8
E101: DYX5040XXYBEV1ZAH0 | F101: 1 | G101: 8.4 | H101: 8.4
C102: 3 | D102: 山西成功汽车制造有限公司 | E102: 小计 | F102: 1439 | H102: 8057.2872 | I102: =ROUND(H102,0) -> 8057 | K102: 0 | L102: 0 | M102: 8057
E103: SCH5022XXY-BEV1 | F103: 550 | G103: 5.448 | H103: 2996.4
E104: SCH5022XXY-BEV2 | F104: 173 | G104: 5.952 | H104: 1029.696
E105: SCH5022XXY-BEV5 | F105: 47 | G105: 5.448 | H105: 256.056
E106: SCH5022XXY-BEV8 | F106: 536 | G106: 5.5752 | H106: 2988.3072
E107: SCH5022XXY-BEV9 | F107: 133 | G107: 5.916 | H107: 786.828
A108: 4 | B108: 辽宁省 | C108: 合计 | F108: 37 | H108: 88.8 | I108: =SUM(I109:I110) -> 89 | K108: 1929 | L108: 89 | M108: 0
C109: 1 | D109: 华晨宝马汽车有限公司 | E109: 小计 | F109: 37 | H109: 88.8 | I109: =ROUND(H109,0) -> 89 | K109: 1929 | L109: 89 | M109: 0
E110: BMW6462AAHEV(BMWX1) | F110: 37 | G110: 2.4 | H110: 88.8
A111: 5 | B111: 大连市 | C111: 合计 | F111: 788 | H111: 5903.9348 | I111: =SUM(I112:I119) -> 5904 | K111: 711 | L111: 711 | M111: 5193
C112: 1 | D112: 一汽客车(大连)有限公司 | E112: 小计 | F112: 788 | H112: 5903.9348 | I112: =ROUND(H112,0) -> 5904 | K112: 711 | L112: 711 | M112: 5193
E113: CA5020XXYBEV31 | F113: 518 | G113: 6.18 | H113: 3201.24
E114: CA5020XXYBEV32 | F114: 105 | G114: 6.18 | H114: 648.9
E115: CA5040XXYBEV31 | F115: 122 | G115: 9.4 | H115: 1146.8
E116: CA6103URHEV31 | F116: 7 | G116: 8.064 | H116: 56.448
E117: CA6103URHEV32 | F117: 2 | G117: 8.064 | H117: 16.128
E118: CA6109URBEV34 | F118: 26 | G118: 29.6118 | H118: 769.9068
E119: CA6126URHEV32 | F119: 8 | G119: 8.064 | H119: 64.512
A120: 6 | B120: 上海市 | C120: 合计 | F120: 5643 | H120: 44439.4712 | I120: =SUM(I121:I155) -> 44440 | K120: =SUM(K121,K127,K147) -> 19039 | L120: 18517 | M120: 25923
C121: 1 | D121: 上海汽车集团股份有限公司 | E121: 小计 | F121: 3625 | H121: 13345.76 | I121: =ROUND(H121,0) -> 13346 | K121: 13868 | L121: 13346 | M121: 0
E122: CSA6454NDPHEV1 | F122: 758 | G122: 2.4 | H122: 1819.2
E123: CSA6456BEV1 | F123: 1904 | G123: 4.84 | H123: 9215.36
E124: CSA7104SDPHEV1 | F124: 275 | G124: 2.4 | H124: 660
E125: CSA7144CDPHEV1 | F125: 149 | G125: 2.4 | H125: 357.6
E126: CSA7154TDPHEV | F126: 539 | G126: 2.4 | H126: 1293.6
C127: 2 | D127: 上海申龙客车有限公司 | E127: 小计 | F127: 1073 | H127: 22284.0112 | I127: =ROUND(H127,0) -> 22284 | K127: 5159 | L127: 5159 | M127: 17125
E128: SLK5030XXYBEV3 | F128: 321 | G128: 6.4596 | H128: 2073.5316 | J128: 核减32辆，原因为：不满足行驶里程数要求
E129: SLK5030XXYBEV3S | F129: 1 | G129: 6.4596 | H129: 6.4596
E130: SLK6108AEBEVD3 | F130: 67 | G130: 29.268 | H130: 1960.956 | J130: 核减3辆，原因为：不满足行驶里程数要求
E131: SLK6108AEBEVS | F131: 19 | G131: 29.8512 | H131: 567.1728 | J131: 核减2辆，原因为：不满足行驶里程数要求
E132: SLK6108ALE0BEVY1 | F132: 25 | G132: 29.268 | H132: 731.7 | J132: 核减3辆，原因为：不满足行驶里程数要求
E133: SLK6109UDHEVL | F133: 6 | G133: 15 | H133: 90
E134: SLK6109UDHEVN1 | F134: 13 | G134: 15 | H134: 195
E135: SLK6109UDHEVZ | F135: 47 | G135: 15 | H135: 705
E136: SLK6109UEBEVN1 | F136: 3 | G136: 30 | H136: 90
E137: SLK6109UEBEVS | F137: 2 | G137: 30 | H137: 60
E138: SLK6109ULE0BEVS5 | F138: 1 | G138: 29.8512 | H138: 29.8512
E139: SLK6109ULE0BEVY1 | F139: 5 | G139: 29.268 | H139: 146.34
E140: SLK6109UNHEVL | F140: 2 | G140: 15 | H140: 30
E141: SLK6118ALD5HEVL1 | F141: 8 | G141: 6 | H141: 48
E142: SLK6118ALE0BEVS6 | F142: 449 | G142: 30 | H142: 13470 | J142: 核减16辆，原因为：不满足行驶里程数要求
E143: SLK6819UEBEVJ1 | F143: 42 | G143: 20 | H143: 840
E144: SLK6819UEBEVN1 | F144: 20 | G144: 20 | H144: 400
E145: SLK6819UEBEVY1 | F145: 31 | G145: 20 | H145: 620
E146: SLK6859UEBEVJ3 | F146: 11 | G146: 20 | H146: 220
C147: 3 | D147: 上汽大通汽车有限公司 | E147: 小计 | F147: 945 | H147: 8809.7 | I147: =ROUND(H147,0) -> 8810 | K147: 12 | L147: 12 | M147: 8798
E148: SH5040XXYA7BEV-4 | F148: 109 | G148: 8.4 | H148: 915.6
E149: SH5040XXYA7BEV-5 | F149: 120 | G149: 7.2 | H149: 864
E150: SH5041XXYA7BEV-6 | F150: 302 | G150: 9 | H150: 2718
E151: SH5041XXYA7BEV-7 | F151: 266 | G151: 9.3 | H151: 2473.8
E152: SH5041XXYA7BEV-D7 | F152: 109 | G152: 9.3 | H152: 1013.7
E153: SH6522C1BEV | F153: 11 | G153: 3.6 | H153: 39.6
E154: SH6612A4FCEV | F154: 13 | G154: 50 | H154: 650
E155: SH6632A4BEV-2 | F155: 15 | G155: 9 | H155: 135
A156: 7 | B156: 江苏省 | C156: 合计 | F156: =SUM(F157,F165,F169,F179,F190,F208,F234,F238) -> 6532 | H156: =SUM(H157,H165,H169,H179,H190,H208,H234,H238) -> 67068.7019 | I156: =SUM(I157,I169,I179,I190,I208,I234,I238) -> 67070 | K156: =SUM(K157,K165,K169,K179,K190,K208,K234,K238) -> 10202 | L156: 6885 | M156: 60185
C157: 1 | D157: 比亚迪汽车工业有限公司南京分公司 | E157: 小计 | F157: 432 | H157: 12730 | I157: =ROUND(H157,0) -> 12730 | K157: 0 | L157: 0 | M157: 12730
E158: BYD6100LGEV3 | F158: 19 | G158: 30 | H158: 570
E159: BYD6100LGEV6 | F159: 21 | G159: 30 | H159: 630
E160: BYD6110LLEV | F160: 4 | G160: 30 | H160: 120
E161: BYD6120LLEV3 | F161: 11 | G161: 30 | H161: 330
E162: BYD6121LGEV3 | F162: 1 | G162: 30 | H162: 30
E163: BYD6121LGEV4 | F163: 353 | G163: 30 | H163: 10590
E164: BYD6810LZEV4 | F164: 23 | G164: 20 | H164: 460
C165: 2 | D165: 江苏常隆客车有限公司 | E165: 小计 | F165: 0 | H165: 0 | I165: =ROUND(H165,0) -> 0 | K165: 0 | L165: 0 | M165: 0
E166: YS6100GBEVA | F166: 0 | G166: 0 | H166: 0 | J166: 核减1辆，原因为：不满足申报数量要求
E167: YS6100GBEVC | F167: 0 | G167: 0 | H167: 0 | J167: 核减14辆，原因为：不满足申报数量要求
E168: YS6860GBEVA | F168: 0 | G168: 0 | H168: 0 | J168: 核减41辆，原因为：不满足申报数量要求
C169: 3 | D169: 江苏九龙汽车制造有限公司 | E169: 小计 | F169: 1757 | H169: 19156.5034 | I169: =ROUND(H169,0) -> 19157 | K169: 1704 | L169: 1704 | M169: 17453
E170: HKL5040XXYBEV1 | F170: 1 | G170: 6.312 | H170: 6.312
E171: HKL5040XXYBEV1 | F171: 7 | G171: 6.312 | H171: 44.184
E172: HKL5041XXYBEV1 | F172: 1476 | G172: 9.287 | H172: 13707.612
E173: HKL6800GBEV1 | F173: 7 | G173: 17.902 | H173: 125.314
E174: HKL6801BEV1 | F174: 3 | G174: 17.902 | H174: 53.706
E175: HKL6801GBEV | F175: 142 | G175: 19.9065 | H175: 2826.723
E176: HKL6801GBEV2 | F176: 85 | G176: 19.9065 | H176: 1692.0525
E177: HKL6801GBEV3 | F177: 29 | G177: 19.3536 | H177: 561.2544
E178: HKL6802BEV1 | F178: 7 | G178: 19.9065 | H178: 139.3455
C179: 4 | D179: 江苏陆地方舟新能源车辆股份有限公司 | E179: 小计 | F179: 626 | H179: 4397.8704 | I179: =ROUND(H179,0) -> 4398 | K179: 1246 | L179: 1246 | M179: 3152
E180: RQ5022XXYEVH9 | F180: 98 | G180: 7.206 | H180: 706.188
E181: RQ5022XXYEVHF | F181: 1 | G181: 6.3876 | H181: 6.3876
E182: RQ5022XXYEVHF | F182: 117 | G182: 7.336 | H182: 858.312
E183: RQ5022XXYEVHJ | F183: 131 | G183: 7.206 | H183: 943.986
E184: RQ5026XXYEVH0 | F184: 226 | G184: 6.24 | H184: 1410.24
E185: RQ5026XXYEVH0 | F185: 44 | G185: 7.206 | H185: 317.064
E186: RQ5026XXYEVH3 | F186: 0 | G186: 0 | H186: 0 | J186: 核减105辆，原因为：现场核查不通过
E187: RQ5026XXYEVH3 | F187: 0 | G187: 0 | H187: 0 | J187: 核减24辆，原因为：现场核查不通过
E188: RQ6110YEVH3 | F188: 1 | G188: 27.2448 | H188: 27.2448
E189: RQ6830YEVH8 | F189: 8 | G189: 16.056 | H189: 128.448
C190: 5 | D190: 金龙联合汽车工业(苏州)有限公司 | E190: 小计 | F190: 258 | H190: 3934.5816 | I190: =ROUND(H190,0) -> 3935 | K190: 7252 | L190: 3935 | M190: 0
E191: KLQ5022XXYEV1 | F191: 40 | G191: 6.126 | H191: 245.04
E192: KLQ6109EV0N | F192: 3 | G192: 30 | H192: 90
E193: KLQ6109GAEVN5 | F193: 2 | G193: 30 | H193: 60
E194: KLQ6109GAEVW3 | F194: 3 | G194: 29.8512 | H194: 89.5536
E195: KLQ6109GAHEVC5K | F195: 3 | G195: 15 | H195: 45
E196: KLQ6109GAHEVE5K1 | F196: 9 | G196: 15 | H196: 135
E197: KLQ6115HZAHEVE5A | F197: 23 | G197: 14.94 | H197: 343.62
E198: KLQ6115HZEV0X3 | F198: 23 | G198: 29.016 | H198: 667.368
E199: KLQ6129GAEVX5 | F199: 13 | G199: 30 | H199: 390
E200: KLQ6129GAHEVC5K | F200: 4 | G200: 15 | H200: 60
... 651 more rows

Sheet 5-2018
A1: 附件5
A2: 2018年度新能源汽车推广应用补助资金清算汇总表
K3: 单位：万元
A4: 地区序号 | B4: 地区 | C4: 序号 | D4: 车辆生产企业 | E4: 车辆型号 | F4: 核定推广数（辆） | G4: 核定补助标准（万元） | H4: 核定补助资金（万元） | I4: 按整车企业取整后补助资金（万元） | J4: 核减原因 | K4: 此前待扣回预拨资金（万元） | L4: 此次实际扣回预拨资金（万元） | M4: 本次实际安排资金 （万元）
A5: 总计 | F5: =SUM(F6:F1560)/3 -> 202070 | H5: =SUM(H6:H1560)/3 -> 1574195.186 | I5: =SUM(I6:I1560)/2 -> 1574195 | K5: =SUM(K6:K1560)/2 -> 161508 | L5: =SUM(L6:L1560)/2 -> 136990 | M5: =SUM(M6:M1560)/2 -> 1437205
A6: 1 | B6: 北京市 | C6: 合计 | F6: 14592 | H6: =SUM(H7,H22,H35) -> 78955.08676 | I6: =SUM(I7:I84) -> 78955 | K6: =SUM(K7,K22,K35) -> 0 | L6: 0 | M6: 78955
C7: 1 | D7: 北京汽车股份有限公司 | E7: 小计 | F7: 9326 | H7: =SUM(H8:H21) -> 50365.186 | I7: =ROUND(H7,0) -> 50365 | K7: 0 | L7: 0 | M7: 50365
E8: BJ5023XXYV3RK-BEV | F8: 0 | G8: 0 | H8: 0 | J8: 需进一步核实后予以清算
E9: BJ7000C5D3-BEV | F9: 6087 | G9: 6.05 | H9: 36826.35 | J9: 3辆需进一步核实后予以清算
E10: BJ7000C5E1-BEV | F10: 4 | G10: 3.08 | H10: 12.32
E11: BJ7000C5E2-BEV | F11: 158 | G11: 3.08 | H11: 486.64
E12: BJ7000C5E4-BEV | F12: 34 | G12: 3.388 | H12: 115.192
E13: BJ7000C5E4-BEV | F13: 327 | G13: 4.5 | H13: 1471.5
E14: BJ7000C5E4-BEV | F14: 7 | G14: 4.84 | H14: 33.88
E15: BJ7000C5E7-BEV | F15: 2 | G15: 3.388 | H15: 6.776
E16: BJ7000C5E7-BEV | F16: 1124 | G16: 4.5 | H16: 5058
E17: BJ7000C5E7-BEV | F17: 21 | G17: 4.84 | H17: 101.64
E18: BJ7000C5E8-BEV | F18: 292 | G18: 4.5 | H18: 1314
E19: BJ7000C5E9-BEV | F19: 307 | G19: 2.7 | H19: 828.9
E20: BJ7000U3D7-BEV | F20: 201 | G20: 3.388 | H20: 680.988
E21: BJ7000U3D7-BEV | F21: 762 | G21: 4.5 | H21: 3429 | J21: 9辆需进一步核实后予以清算
C22: 2 | D22: 北京新能源汽车股份有限公司 | E22: 小计 | F22: 4031 | H22: =SUM(H23:H34) -> 10915.98 | I22: =ROUND(H22,0) -> 10916 | K22: 0 | L22: 0 | M22: 10916
E23: BJ7001BPH1-BEV | F23: 58 | G23: 2.52 | H23: 146.16 | J23: 6辆需进一步核实后予以清算
E24: BJ7001BPH1-BEV | F24: 17 | G24: 3.6 | H24: 61.2
E25: BJ7001BPH2-BEV | F25: 1 | G25: 2.52 | H25: 2.52
E26: BJ7001BPH5-BEV | F26: 495 | G26: 2.772 | H26: =F26*G26 -> 1372.14 | J26: 517辆需进一步核实后予以清算
E27: BJ7001BPH5-BEV | F27: 28 | G27: 3.96 | H27: 110.88
E28: BJ7001BPH6-BEV | F28: 618 | G28: 3.672 | H28: =F28*G28 -> 2269.296 | J28: 263辆需进一步核实后予以清算
E29: BJ7001BPH7-BEV | F29: 78 | G29: 2.772 | H29: 216.216
E30: BJ7001BPH7-BEV | F30: 14 | G30: 3.96 | H30: 55.44
E31: BJ7001BPH8-BEV | F31: 217 | G31: 2.52 | H31: 546.84 | J31: 2辆需进一步核实后予以清算
E32: BJ7001BPH9-BEV | F32: 328 | G32: 2.772 | H32: =F32*G32 -> 909.216 | J32: 215辆需进一步核实后予以清算
E33: BJ7001BPHA-BEV | F33: 2176 | G33: 2.4 | H33: =F33*G33 -> 5222.4 | J33: 2460辆需进一步核实后予以清算
E34: BJ7001BPHB-BEV | F34: 1 | G34: 3.672 | H34: 3.672
C35: 3 | D35: 北汽福田汽车股份有限公司 | E35: 小计 | F35: 1235 | H35: 17673.92076 | I35: =ROUND(H35,0) -> 17674 | K35: 0 | L35: 0 | M35: 17674
E36: BJ5023XXYEV4 | F36: 3 | G36: 1.85808 | H36: 5.57424
E37: BJ5032TYHEV-H1 | F37: 0 | G37: 0 | H37: 0 | J37: 核减3辆,原因为:电池单体型号与推荐目录不一致,电池生产企业与推荐目录不一致
E38: BJ5035XXYEV2 | F38: 149 | G38: 4.2398 | H38: 631.7302
E39: BJ5043XXYEV1 | F39: 0 | G39: 0 | H39: 0 | J39: 核减13辆,原因为: 相关车型不在推荐目录内
E40: BJ5045XXYEV1 | F40: 0 | G40: 0 | H40: 0 | J40: 核减103辆,原因为:相关车型不在推荐目录内
E41: BJ5045XXYEV2 | F41: 0 | G41: 0 | H41: 0 | J41: 核减48辆,原因为:相关车型不在推荐目录内
E42: BJ5048XXYEV2 | F42: 1 | G42: 3.424 | H42: 3.424
E43: BJ5048XXYEV3 | F43: 0 | G43: 0 | H43: 0 | J43: 核减5辆,原因为:相关车型不在推荐目录内
E44: BJ5049XXYEV5 | F44: 144 | G44: 4.088 | H44: 588.672
E45: BJ5088XXYFCEV | F45: 3 | G45: 50 | H45: 150
E46: BJ6103EVUA-2 | F46: 5 | G46: 21 | H46: 105
E47: BJ6105CHEVCA-11 | F47: 43 | G47: 7.5 | H47: 322.5
E48: BJ6105EVCA-25 | F48: 3 | G48: 21 | H48: 63
E49: BJ6105EVCA-27 | F49: 73 | G49: 19.8 | H49: 1445.4
E50: BJ6105EVCA-28 | F50: 72 | G50: 19.8 | H50: 1425.6
E51: BJ6105EVCA-30 | F51: 31 | G51: 19.8 | H51: 613.8
E52: BJ6105EVCA-31 | F52: 1 | G52: 19.8 | H52: 19.8
E53: BJ6105EVCA-31 | F53: 135 | G53: 21 | H53: 2835
E54: BJ6105EVCA-41 | F54: 16 | G54: 21.78 | H54: 348.48
E55: BJ6105FCEVCH | F55: 15 | G55: 50 | H55: 750
E56: BJ6105PHEVCA-17 | F56: 4 | G56: 7.5 | H56: 30
E57: BJ6105PHEVCA-19 | F57: 71 | G57: 7.5 | H57: 532.5
E58: BJ6117EVUA-5 | F58: 1 | G58: 19.8 | H58: 19.8
E59: BJ6123EVCA-32 | F59: 1 | G59: 21 | H59: 21
E60: BJ6123EVCA-33 | F60: 3 | G60: 20.9019 | H60: 62.7057
E61: BJ6123EVCA-33 | F61: 1 | G61: 29.8598 | H61: 29.8598
E62: BJ6123EVCA-43 | F62: 89 | G62: 19.8 | H62: 1762.2
A63: 1 | B63: 北京市 | C63: 3 | D63: 北汽福田汽车股份有限公司 | E63: BJ6123FCEVCH-1 | F63: 4 | G63: 50 | H63: 200
E64: BJ6123PHEVCA-15 | F64: 5 | G64: 7.5 | H64: 37.5
E65: BJ6123PHEVCA-15 | F65: 1 | G65: 10.5 | H65: 10.5
E66: BJ6123PHEVCA-15 | F66: 1 | G66: 15 | H66: 15
E67: BJ6802EVUA-6 | F67: 12 | G67: 13.1078 | H67: 157.2936
E68: BJ6802EVUA-7 | F68: 2 | G68: 13.2 | H68: 26.4
E69: BJ6805EVCA-16 | F69: 49 | G69: 13.10778 | H69: 642.28122
E70: BJ6805EVCA-17 | F70: 50 | G70: 13.2 | H70: 660
E71: BJ6805EVCA-17 | F71: 51 | G71: 14 | H71: 714
E72: BJ6805EVCA-18 | F72: 2 | G72: 13.2 | H72: 26.4
E73: BJ6805EVCA-20 | F73: 19 | G73: 13.2 | H73: 250.8
E74: BJ6805EVCA-8 | F74: 2 | G74: 14 | H74: 28
E75: BJ6851EVCA-16 | F75: 39 | G75: 12 | H75: 468
E76: BJ6851EVCA-17 | F76: 25 | G76: 13.2 | H76: 330
E77: BJ6851EVCA-22 | F77: 20 | G77: 14.52 | H77: 290.4
E78: BJ6851EVCA-25 | F78: 30 | G78: 14.52 | H78: 435.6
E79: BJ6851EVCA-8 | F79: 2 | G79: 14 | H79: 28
E80: BJ6851EVCA-9 | F80: 23 | G80: 14 | H80: 322
E81: BJ6852FCEVUH | F81: 24 | G81: 50 | H81: 1200
E82: BJ6855CHEVCA-3 | F82: 1 | G82: 9 | H82: 9
E83: BJ6855PHEVCA-1 | F83: 6 | G83: 6.3 | H83: 37.8
E84: BJ6905CHEVCA-10 | F84: 3 | G84: 6.3 | H84: 18.9
A85: 2 | B85: 河北省 | C85: 合计 | F85: 2417 | H85: =SUM(H86,H94) -> 11604.73848 | I85: =SUM(I86:I105) -> 11605 | K85: =SUM(K86,K94) -> 9224 | L85: 9035 | M85: 2570
C86: 1 | D86: 长城汽车股份有限公司 | E86: 小计 | F86: 1966 | H86: =SUM(H87:H93) -> 9035.1184 | I86: =ROUND(H86,0) -> 9035 | K86: 9224 | L86: 9035 | M86: 0
E87: CC6484AD21APHEV | F87: 0 | G87: 0 | H87: 0 | J87: 需进一步核实后予以清算
E88: CC6484AD21APHEV | F88: 0 | G88: 0 | H88: 0 | J88: 需进一步核实后予以清算
E89: CC7000CE04BEV | F89: 55 | G89: 3.388 | H89: 186.34
E90: CC7000CE04BEV | F90: 732 | G90: 3.74 | H90: 2737.68
E91: CC7000ZM00ABEV | F91: 13 | G91: 3.96 | H91: 51.48
E92: CC7001CE02ABEV | F92: 715 | G92: 4.95 | H92: 3539.25
E93: CC7001CE03BEV | F93: 451 | G93: 5.5884 | H93: 2520.3684
C94: 2 | D94: 河北长安汽车有限公司 | E94: 小计 | F94: 451 | H94: =SUM(H95:H105) -> 2569.62008 | I94: =ROUND(H94,0) -> 2570 | K94: 0 | L94: 0 | M94: 2570
E95: SC1027DACABEV | F95: 107 | G95: 2.8344 | H95: 303.2808
E96: SC5027XXYDAABEV | F96: 94 | G96: 2.8344 | H96: 266.4336
E97: SC5028XXYNBEV | F97: 1 | G97: 3.243 | H97: 3.243 | J97: 51辆需进一步核实后予以清算
E98: SC5033XXYJBEV | F98: 110 | G98: 3.7689 | H98: 414.579
E99: SC5033XXYKBEV | F99: 34 | G99: 3.7689 | H99: 128.1426 | J99: 核减1辆,原因为:不满足行驶里程数要求
E100: SC5035XXYDCBBEV | F100: 3 | G100: 3.244 | H100: 9.732
E101: SC6805ABBEV | F101: 62 | G101: 13.93434 | H101: 863.92908
E102: SC6805ABEV | F102: 12 | G102: 14.52 | H102: 174.24
E103: SC6805ACBEV | F103: 1 | G103: 14 | H103: 14
E104: SC6805BBEV | F104: 14 | G104: 14.52 | H104: 203.28
E105: SC6836EBEV | F105: 13 | G105: 14.52 | H105: 188.76
A106: 3 | B106: 山西省 | C106: 合计 | F106: 2595 | H106: =SUM(H107,H128) -> 10334.25512 | I106: =SUM(I107:I137) -> 10334 | K106: =SUM(K107,K128) -> 0 | L106: 0 | M106: 10334
C107: 1 | D107: 成都大运汽车集团有限公司 | E107: 小计 | F107: 411 | H107: 3541.966401 | I107: =ROUND(H107,0) -> 3542 | K107: 0 | L107: 0 | M107: 3542
E108: CGC4250BEV1Z1 | F108: 7 | G108: 6 | H108: 42
E109: CGC5025XXYBEV1NBBFBAXY | F109: 13 | G109: 6.0264 | H109: 78.3432
E110: CGC5040XXYBEV1CAH0 | F110: 8 | G110: 3.36 | H110: 26.88
E111: CGC5040XXYBEV1ZAH0 | F111: 5 | G111: 3.36 | H111: 16.8
E112: CGC5044XXYBEV1AAAJEAGK | F112: 1 | G112: 2.56608 | H112: 2.56608
E113: CGC5044XXYBEV1AAAJEAGK | F113: 2 | G113: 6.4152 | H113: 12.8304
E114: CGC5044XXYBEV1AAAJEAHZ | F114: 3 | G114: 2.56608 | H114: 7.69824
E115: CGC5044XXYBEV1AAAJEAHZ | F115: 96 | G115: 6.4152 | H115: 615.8592
E116: CGC5044XXYBEV1NBLJEAGY | F116: 4 | G116: 3.856 | H116: 15.424
E117: CGC5044XXYBEV1NBLJEAGY | F117: 18 | G117: 9.64 | H117: 173.52
E118: CGC5045XLCBEV1Z2 | F118: 1 | G118: 6.15795 | H118: 6.15795
E119: CGC5045XLCBEV1Z3 | F119: 17 | G119: 7.09005 | H119: 120.53085
E120: CGC5045XXYBEV1Z4 | F120: 83 | G120: 6.15795 | H120: 511.10985
E121: CGC5045XXYBEV1Z5 | F121: 18 | G121: 7.09005 | H121: 127.6209
A122: 3 | B122: 山西省 | C122: 1 | D122: 成都大运汽车集团有限公司 | E122: CGC5045XXYBEV1Z7 | F122: 9 | G122: 6.15795 | H122: 55.42155
E123: CGC5045XXYBEV2Z2 | F123: 49 | G123: 5.8424192 | H123: 286.2785408
E124: CGC5045XXYBEV2Z3 | F124: 2 | G124: 6.74282 | H124: 13.48564
E125: CGC6101BEV1K5 | F125: 48 | G125: 21.78 | H125: 1045.44
E126: CGC6801BEV1K3 | F126: 26 | G126: 14 | H126: 364
E127: CGC6806BEV1PAMKHAUM | F127: 1 | G127: 20 | H127: 20
C128: 2 | D128: 山西成功汽车制造有限公司成都大运汽车集团有限公司 | E128: 小计 | F128: 2184 | H128: =SUM(H129:H137) -> 6792.28872 | I128: =ROUND(H128,0) -> 6792 | K128: 0 | L128: 0 | M128: 6792
E129: SCH5022XXY-BEV1 | F129: 1 | G129: 2.1792 | H129: 2.1792
E130: SCH5022XXY-BEV1 | F130: 21 | G130: 5.448 | H130: 114.408
E131: SCH5022XXY-BEV5 | F131: 2 | G131: 5.448 | H131: 10.896
E132: SCH5022XXY-BEV8 | F132: 864 | G132: 2.23008 | H132: 1926.78912
E133: SCH5022XXY-BEV8 | F133: 277 | G133: 5.5752 | H133: 1544.3304
E134: SCH5022XXY-BEV9 | F134: 180 | G134: 2.3664 | H134: 425.952
E135: SCH5022XXY-BEVC | F135: 782 | G135: 3.222 | H135: 2519.604
E136: SCH6431BEV | F136: 14 | G136: 2.52 | H136: =F136*G136 -> 35.28 | J136: 5辆需进一步核实后予以清算
E137: SCH6431BEV1 | F137: 43 | G137: 4.95 | H137: =F137*G137 -> 212.85 | J137: 55辆需进一步核实后予以清算
A138: 4 | B138: 辽宁省 | C138: 合计 | F138: 10 | H138: 11 | I138: =SUM(I139:I146) -> 11 | K138: 1840 | L138: 11 | M138: 0
C139: 1 | D139: 华晨宝马汽车有限公司 | E139: 小计 | F139: 10 | H139: 11 | I139: =ROUND(H139,0) -> 11 | K139: 1840 | L139: 11 | M139: 0
E140: BBA6461AAHEV(ZINORO60H) | F140: 10 | G140: 1.1 | H140: 11
E141: BMW6462AAHEV(BMWX1) | F141: 0 | G141: 0 | H141: 0 | J141: 核减2721辆,原因为:现场核查不通过
E142: BMW6462AAHEV(BMWX1) | F142: 0 | G142: 0 | H142: 0 | J142: 核减130辆,原因为:现场核查不通过
E143: BMW6462AAHEV(BMWX1) | F143: 0 | G143: 0 | H143: 0 | J143: 核减75辆,原因为:现场核查不通过
E144: BMW7201BMHEV | F144: 0 | G144: 0 | H144: 0 | J144: 核减89辆,原因为:现场核查不通过
E145: BMW7201CMHEV | F145: 0 | G145: 0 | H145: 0 | J145: 核减4267辆,原因为:现场核查不通过
E146: BMW7201CMHEV | F146: 0 | G146: 0 | H146: 0 | J146: 核减9辆,原因为:现场核查不通过
A147: 5 | B147: 大连市 | C147: 合计 | F147: 757 | H147: 2306.912 | I147: =SUM(I148:I151) -> 2307 | K147: 0 | L147: 0 | M147: 2307
C148: 1 | D148: 一汽客车(大连)有限公司 | E148: 小计 | F148: 757 | H148: 2306.912 | I148: =ROUND(H148,0) -> 2307 | K148: 0 | L148: 0 | M148: 2307
E149: CA5020XXYBEV31 | F149: 455 | G149: 2.472 | H149: 1124.76
E150: CA5020XXYBEV32 | F150: 166 | G150: 2.472 | H150: 410.352
E151: CA5040XXYBEV31 | F151: 136 | G151: 5.675 | H151: 771.8
A152: 6 | B152: 上海市 | C152: 合计 | F152: 17233 | H152: 83864.6364 | I152: =SUM(I153:I248) -> 83865 | K152: =SUM(K153,K179,K232,K246) -> 3320 | L152: 796 | M152: 83069
C153: 1 | D153: 上海汽车集团股份有限公司 | E153: 小计 | F153: 14254 | H153: 45497.574 | I153: =ROUND(H153,0) -> 45498 | K153: 522 | L153: 522 | M153: 44976
E154: CSA6454NDPHEV1 | F154: 168 | G154: 1.1 | H154: 184.8
E155: CSA6454NDPHEV1 | F155: 294 | G155: 1.68 | H155: 493.92
E156: CSA6454NDPHEV1 | F156: 90 | G156: 2.4 | H156: 216
E157: CSA6454NDPHEV2 | F157: 425 | G157: 2.2 | H157: 935
E158: CSA6456BEV1 | F158: 49 | G158: 3.388 | H158: 166.012
E159: CSA6456BEV1 | F159: 937 | G159: 4.84 | H159: 4535.08
E160: CSA6456BEV1 | F160: 92 | G160: 4.95 | H160: 455.4
E161: CSA6456BEV2 | F161: 84 | G161: 4.95 | H161: 415.8
E162: CSA6461FBEV1 | F162: 34 | G162: 6.05 | H162: 205.7
E163: CSA6461FBEV2 | F163: 11 | G163: 4.95 | H163: 54.45
E164: CSA7002FBEV1 | F164: 84 | G164: 3.388 | H164: 284.592
E165: CSA7002FBEV1 | F165: 4007 | G165: 4.2 | H165: 16829.4
E166: CSA7002FBEV3 | F166: 1040 | G166: 6.05 | H166: 6292
E167: CSA7102SDPHEV | F167: 16 | G167: 1.68 | H167: 26.88
E168: CSA7102SDPHEV | F168: 97 | G168: 2.2 | H168: 213.4
E169: CSA7104SDPHEV1 | F169: 335 | G169: 1.1 | H169: 368.5
E170: CSA7104SDPHEV1 | F170: 1 | G170: 1.68 | H170: 1.68
E171: CSA7104SDPHEV1 | F171: 699 | G171: 1.68 | H171: 1174.32
E172: CSA7104SDPHEV1 | F172: 65 | G172: 2.4 | H172: 156
E173: CSA7104SDPHEV3 | F173: 148 | G173: 1.68 | H173: 248.64
E174: CSA7104SDPHEV3 | F174: 5272 | G174: 2.2 | H174: 11598.4
E175: CSA7144CDPHEV1 | F175: 65 | G175: 1.68 | H175: 109.2
E176: CSA7144CDPHEV1 | F176: 58 | G176: 2.2 | H176: 127.6
E177: CSA7144CDPHEV1 | F177: 11 | G177: 2.4 | H177: 26.4
E178: CSA7144CDPHEV2 | F178: 172 | G178: 2.2 | H178: 378.4
A179: 6 | B179: 上海市 | C179: 2 | D179: 上海申龙客车有限公司 | E179: 小计 | F179: 2441 | H179: 36157.1614 | I179: =ROUND(H179,0) -> 36157 | K179: 0 | L179: 0 | M179: 36157
E180: SLK5030XXYBEV1 | F180: 40 | G180: 3.77475 | H180: 150.99
E181: SLK5030XXYBEV3S | F181: 2 | G181: 6.4596 | H181: 12.9192
E182: SLK5032XXYBEV1 | F182: 23 | G182: 3.1425 | H182: 72.2775
E183: SLK5032XXYBEV3 | F183: 331 | G183: 3.3525 | H183: 1109.6775 | J183: 核减11辆,原因为:不符合行驶里程数要求
E184: SLK5042XXYBEV | F184: 6 | G184: 5.98154 | H184: 35.88924
E185: SLK5046XSHBEV | F185: 2 | G185: 5.5697 | H185: 11.1394 | J185: 核减2辆,原因为:不符合行驶里程数要求
E186: SLK6101UBEVN1 | F186: 38 | G186: 19.8 | H186: 752.4
E187: SLK6108ABEVW1 | F187: 6 | G187: 19.8 | H187: 118.8 | J187: 核减1辆,原因为:不符合行驶里程数要求
E188: SLK6108AEBEVS | F188: 1 | G188: 18.2424 | H188: 18.2424
E189: SLK6109UBEVL5 | F189: 153 | G189: 21.78 | H189: 3332.34 | J189: 核减2辆,原因为:不符合行驶里程数要求
E190: SLK6109UBEVL9 | F190: 58 | G190: 21.78 | H190: 1263.24
E191: SLK6109UBEVW1 | F191: 15 | G191: 19.8 | H191: 297
E192: SLK6109UBEVW1 | F192: 1 | G192: 21 | H192: 21
E193: SLK6109UBEVW17 | F193: 103 | G193: 21.78 | H193: 2243.34
E194: SLK6109UBEVW3 | F194: 56 | G194: 19.8 | H194: 1108.8
E195: SLK6109UBEVW3 | F195: 48 | G195: 21 | H195: 1008
E196: SLK6109UDHEVL | F196: 3 | G196: 10.5 | H196: 31.5
E197: SLK6109UDHEVN1 | F197: 12 | G197: 10.5 | H197: 126
E198: SLK6109ULE0BEVS5 | F198: 13 | G198: 18.2424 | H198: 237.1512
E199: SLK6109ULE0BEVS5 | F199: 19 | G199: 20.89584 | H199: 397.02096 | J199: 核减1辆,原因为:不符合行驶里程数要求
E200: SLK6109ULE0BEVS9 | F200: 7 | G200: 21 | H200: 147
... 1360 more rows
